Workbook

Sheet Specifiche
B1: Nome Campo | C1: Tipo | D1: Lunghezza Max | E1: Descrizione
A2: parte generale | B2: Nome Impianto | C2: Testo | D2: 255 | E2: è necessario indicare la denominazione dell'impianto cui si riferisce la scheda, ovvero l'impianto compilatore. Si deve ripetere in tutte le righe
B3: Anno Riferimento | C3: Numero | E3: è da inserire il valore dell'anno cui si riferiscono i dati: 2018; si deve ripetere in tutte le righe
B4: Codice Istat Comune | C4: Numero | E4: INSERIRE IL CODICE ISTAT DEL COMUNE. Lasciarlo vuoto se si inserisce il nome consorzio. Al campo “Codice Istat Comune” è associato una macro che controlla il codice inserito. Se trova un codice ammissibile, viene valorizzato il campo seguente, “Nome Comune”, altrimenti viene mostrato un messaggio di errore. I codici Istat possono essere cercati nel foglio “Elenco Comuni”.
B5: Nome Comune | C5: Testo | E5: Serve solo per controllo. Si valorizza automaticamente inserendo il codice istat comune
B6: Nome Associazione comuni/Unione comuni | C6: Testo | D6: 150 | E6: Inserire il nome dell'unione/ associazione di Comuni. Se valorizzato, lasciare vuoto il codice istat comune ed il nome comune.
B7: Nome Conferitore (solo per i dati da Privati) | C7: Testo | D7: 255 | E7: Questo campo è presente solo nel foglio "B- rifiuti da privati" al posto delle colonne riferite al Comune e al Consorzio. È necessario inserire la denominazione del soggetto produttore che ha conferito il rifiuto
B8: Mese | C8: Numero | E8: Numero da 1 a 12. NON INSERIRE IL NOME DEL MESE, utilizzare solo il numero (esempio digitare 1 se si vuole indicare gennaio, 2 per febbraio ecc). INSERIRE 0 (ZERO) se la compilazione è annuale (opzione possibile per il foglio PRIVATI)
B9: Rifiuto (CER) | C9: Testo | E9: codice CER del rifiuto
B10: Quantità in Tonnellate | C10: Numero | E10: Quantità di rifiuto espresso in tonnellate
B11: Frequenza (A=annuale: M=mensile) | C11: Testo | E11: Inserire A se la compilazione è annuale, M se la compilazione avviene con dati mensili. la frequenza dei dati del prospetto A- da comuni e consorzi deve essere preferibilmente di tipo mensile, ovvero devono essere forniti i dati dei rifiuti conferiti mese per mese. Solo per il foglio "B- rifiuti da privati" è ammessa la compilazione del totale conferito per anno; in tutti gli altri casi l'utilizzo di questa modalità è da concordare con i referenti dell'ARPAS.
B12: Ditta Trasporto | C12: Testo | D12: 255 | E12: indicare la ditta di trasporto che ha conferito i rifiuti all'impianto compilatore
B13: Tariffa Conferimento | C13: Testo | D13: 100 | E13: indicare preferibilmente la tariffa applicata in euro/tonnellata IVA ESENTE; la tariffa deve essere comprensiva di ecotassa se prevista; solo in casi specifici la tariffa puo' essere espressa indicando un'altra unità di misura
B14: Operazione di smaltimento o recupero | C14: Testo | D14: 100 | E14: inserire l'operazione di smaltimento o recupero cui è sottoposto il rifiuto ai sensi degli allegati B e C dell'allegato IV del Dlgs 152/2006 . E' sufficiente inserire la sigla dell'operazione svolta (d1, d2….r1,r2, r3,…)
B15: Note | C15: Testo | D15: 255 | E15: inserire ulteriori dettagli che potrebbero essere utili per la descrizione dei rifiuti in oggetto o relative alla loro provenienza . Inserire la composizione del consorzio /unione/associazione se il rifiuto proviene da un soggetto di questo tipo
A16: solo per i rifiuti a recupero | B16: Impianti Destinazione materiali a recupero | C16: Testo | D16: 255 | E16: indicare l'impianto a cui viene destinato il materiale recuperato del rifiuto selezionato/trattato
B17: Quantità materiali a recupero | C17: Numero | E17: quantità espresse in tonnellate
B18: Impianti Destinazione scarti | C18: Testo | D18: 255 | E18: indicare l'impianto a cui viene destinato lo scarto del rifiuto selezionato/trattato
B19: Quantità scarti allo smaltimento | C19: Numero | E19: quantità espresse in tonnellate
A20: solo per piattaforme rientranti negli accordi RAS CONAI | B20: Convenzione Conai | C20: Booleano | E20: Immettere si o no
B21: Possesso delega (comune/ditta) | C21: Testo | D21: 255 | E21: Indicare se è la ditta di trasporto, la piattaforma o il comune/unione dei comuni conferente, il titolare della convenzione con il Consorzio del Conai relativo al rifiuto conferito
B22: Consorzio di fliera convenzionato | C22: Testo | D22: 255 | E22: Indicare il consorzio di filiera con il quale è stipulata la convenzione: COMIECO, COREPLA, COREVE, CIAL,RILEGNO, RICREA…
A23: attenzione!!! Si prega di compilare le righe successive senza righe vuote di interruzione e senza inserire subtotali

Sheet elenco comuni
A1: Codice Istat Comune | B1: Nome Comune | C1: Provincia | F1: ATTENZIONE: utilizzate unicamente i CODICI ISTAT dei comuni sardi riportati in questo prospetto
A2: 92003 | B2: Assemini | C2: Città metropolitana di Cagliari | F2: SI TRATTA dei nuovi codici derivanti dalla nuova divisione territoriale regionale
A3: 92009 | B3: Cagliari | C3: Città metropolitana di Cagliari
A4: 92011 | B4: Capoterra | C4: Città metropolitana di Cagliari
A5: 92015 | B5: Decimomannu | C5: Città metropolitana di Cagliari
A6: 92108 | B6: Elmas | C6: Città metropolitana di Cagliari
A7: 92037 | B7: Maracalagonis | C7: Città metropolitana di Cagliari
A8: 92109 | B8: Monserrato | C8: Città metropolitana di Cagliari
A9: 92050 | B9: Pula | C9: Città metropolitana di Cagliari
A10: 92051 | B10: Quartu Sant'Elena | C10: Città metropolitana di Cagliari
A11: 92105 | B11: Quartucciu | C11: Città metropolitana di Cagliari
A12: 92066 | B12: Sarroch | C12: Città metropolitana di Cagliari
A13: 92068 | B13: Selargius | C13: Città metropolitana di Cagliari
A14: 92074 | B14: Sestu | C14: Città metropolitana di Cagliari
A15: 92075 | B15: Settimo San Pietro | C15: Città metropolitana di Cagliari
A16: 92080 | B16: Sinnai | C16: Città metropolitana di Cagliari
A17: 92090 | B17: Uta | C17: Città metropolitana di Cagliari
A18: 92099 | B18: Villa San Pietro | C18: Città metropolitana di Cagliari
A19: 91001 | B19: Aritzo | C19: Nuoro
A20: 91002 | B20: Arzana | C20: Nuoro
A21: 91003 | B21: Atzara | C21: Nuoro
A22: 91004 | B22: Austis | C22: Nuoro
A23: 91005 | B23: Bari Sardo | C23: Nuoro
A24: 91006 | B24: Baunei | C24: Nuoro
A25: 91007 | B25: Belvì | C25: Nuoro
A26: 91008 | B26: Birori | C26: Nuoro
A27: 91009 | B27: Bitti | C27: Nuoro
A28: 91010 | B28: Bolotana | C28: Nuoro
A29: 91011 | B29: Borore | C29: Nuoro
A30: 91012 | B30: Bortigali | C30: Nuoro
A31: 91103 | B31: Cardedu | C31: Nuoro
A32: 91016 | B32: Desulo | C32: Nuoro
A33: 91017 | B33: Dorgali | C33: Nuoro
A34: 91018 | B34: Dualchi | C34: Nuoro
A35: 91019 | B35: Elini | C35: Nuoro
A36: 91024 | B36: Fonni | C36: Nuoro
A37: 91025 | B37: Gadoni | C37: Nuoro
A38: 91026 | B38: Gairo | C38: Nuoro
A39: 91027 | B39: Galtellì | C39: Nuoro
A40: 91028 | B40: Gavoi | C40: Nuoro
A41: 91031 | B41: Girasole | C41: Nuoro
A42: 91032 | B42: Ilbono | C42: Nuoro
A43: 91033 | B43: Irgoli | C43: Nuoro
A44: 91035 | B44: Jerzu | C44: Nuoro
A45: 91037 | B45: Lanusei | C45: Nuoro
A46: 91038 | B46: Lei | C46: Nuoro
A47: 91039 | B47: Loceri | C47: Nuoro
A48: 91040 | B48: Loculi | C48: Nuoro
A49: 91041 | B49: Lodè | C49: Nuoro
A50: 91104 | B50: Lodine | C50: Nuoro
A51: 91042 | B51: Lotzorai | C51: Nuoro
A52: 91043 | B52: Lula | C52: Nuoro
A53: 91044 | B53: Macomer | C53: Nuoro
A54: 91046 | B54: Mamoiada | C54: Nuoro
A55: 91047 | B55: Meana Sardo | C55: Nuoro
A56: 91050 | B56: Noragugume | C56: Nuoro
A57: 91051 | B57: Nuoro | C57: Nuoro
A58: 91055 | B58: Oliena | C58: Nuoro
A59: 91056 | B59: Ollolai | C59: Nuoro
A60: 91057 | B60: Olzai | C60: Nuoro
A61: 91058 | B61: Onanì | C61: Nuoro
A62: 91059 | B62: Onifai | C62: Nuoro
A63: 91060 | B63: Oniferi | C63: Nuoro
A64: 91061 | B64: Orani | C64: Nuoro
A65: 91062 | B65: Orgosolo | C65: Nuoro
A66: 91063 | B66: Orosei | C66: Nuoro
A67: 91064 | B67: Orotelli | C67: Nuoro
A68: 91066 | B68: Ortueri | C68: Nuoro
A69: 91067 | B69: Orune | C69: Nuoro
A70: 91068 | B70: Osidda | C70: Nuoro
A71: 91069 | B71: Osini | C71: Nuoro
A72: 91070 | B72: Ottana | C72: Nuoro
A73: 91071 | B73: Ovodda | C73: Nuoro
A74: 91072 | B74: Perdasdefogu | C74: Nuoro
A75: 91073 | B75: Posada | C75: Nuoro
A76: 91077 | B76: Sarule | C76: Nuoro
A77: 91083 | B77: Silanus | C77: Nuoro
A78: 91084 | B78: Sindia | C78: Nuoro
A79: 91085 | B79: Siniscola | C79: Nuoro
A80: 91086 | B80: Sorgono | C80: Nuoro
A81: 91088 | B81: Talana | C81: Nuoro
A82: 91089 | B82: Tertenia | C82: Nuoro
A83: 91090 | B83: Teti | C83: Nuoro
A84: 91091 | B84: Tiana | C84: Nuoro
A85: 91093 | B85: Tonara | C85: Nuoro
A86: 91094 | B86: Torpè | C86: Nuoro
A87: 91095 | B87: Tortolì | C87: Nuoro
A88: 91097 | B88: Triei | C88: Nuoro
A89: 91098 | B89: Ulassai | C89: Nuoro
A90: 91099 | B90: Urzulei | C90: Nuoro
A91: 91100 | B91: Ussassai | C91: Nuoro
A92: 91101 | B92: Villagrande Strisaili | C92: Nuoro
A93: 95001 | B93: Abbasanta | C93: Oristano
A94: 95002 | B94: Aidomaggiore | C94: Oristano
A95: 95003 | B95: Albagiara | C95: Oristano
A96: 95004 | B96: Ales | C96: Oristano
A97: 95005 | B97: Allai | C97: Oristano
A98: 95006 | B98: Arborea | C98: Oristano
A99: 95007 | B99: Ardauli | C99: Oristano
A100: 95008 | B100: Assolo | C100: Oristano
A101: 95009 | B101: Asuni | C101: Oristano
A102: 95010 | B102: Baradili | C102: Oristano
A103: 95011 | B103: Baratili San Pietro | C103: Oristano
A104: 95012 | B104: Baressa | C104: Oristano
A105: 95013 | B105: Bauladu | C105: Oristano
A106: 95014 | B106: Bidonì | C106: Oristano
A107: 95015 | B107: Bonarcado | C107: Oristano
A108: 95016 | B108: Boroneddu | C108: Oristano
A109: 95079 | B109: Bosa | C109: Oristano
A110: 95017 | B110: Busachi | C110: Oristano
A111: 95018 | B111: Cabras | C111: Oristano
A112: 95019 | B112: Cuglieri | C112: Oristano
A113: 95077 | B113: Curcuris | C113: Oristano
A114: 95080 | B114: Flussio | C114: Oristano
A115: 95020 | B115: Fordongianus | C115: Oristano
A116: 95021 | B116: Ghilarza | C116: Oristano
A117: 95022 | B117: Gonnoscodina | C117: Oristano
A118: 95023 | B118: Gonnosnò | C118: Oristano
A119: 95024 | B119: Gonnostramatza | C119: Oristano
A120: 95082 | B120: Laconi | C120: Oristano
A121: 95083 | B121: Magomadas | C121: Oristano
A122: 95025 | B122: Marrubiu | C122: Oristano
A123: 95026 | B123: Masullas | C123: Oristano
A124: 95027 | B124: Milis | C124: Oristano
A125: 95084 | B125: Modolo | C125: Oristano
A126: 95028 | B126: Mogorella | C126: Oristano
A127: 95029 | B127: Mogoro | C127: Oristano
A128: 95085 | B128: Montresta | C128: Oristano
A129: 95030 | B129: Morgongiori | C129: Oristano
A130: 95031 | B130: Narbolia | C130: Oristano
A131: 95032 | B131: Neoneli | C131: Oristano
A132: 95033 | B132: Norbello | C132: Oristano
A133: 95034 | B133: Nughedu Santa Vittoria | C133: Oristano
A134: 95035 | B134: Nurachi | C134: Oristano
A135: 95036 | B135: Nureci | C135: Oristano
A136: 95037 | B136: Ollastra | C136: Oristano
A137: 95038 | B137: Oristano | C137: Oristano
A138: 95039 | B138: Palmas Arborea | C138: Oristano
A139: 95040 | B139: Pau | C139: Oristano
A140: 95041 | B140: Paulilatino | C140: Oristano
A141: 95042 | B141: Pompu | C141: Oristano
A142: 95043 | B142: Riola Sardo | C142: Oristano
A143: 95044 | B143: Ruinas | C143: Oristano
A144: 95086 | B144: Sagama | C144: Oristano
A145: 95045 | B145: Samugheo | C145: Oristano
A146: 95046 | B146: San Nicolò d'Arcidano | C146: Oristano
A147: 95050 | B147: San Vero Milis | C147: Oristano
A148: 95047 | B148: Santa Giusta | C148: Oristano
A149: 95049 | B149: Santu Lussurgiu | C149: Oristano
A150: 95051 | B150: Scano di Montiferro | C150: Oristano
A151: 95052 | B151: Sedilo | C151: Oristano
A152: 95053 | B152: Seneghe | C152: Oristano
A153: 95054 | B153: Senis | C153: Oristano
A154: 95055 | B154: Sennariolo | C154: Oristano
A155: 95056 | B155: Siamaggiore | C155: Oristano
A156: 95057 | B156: Siamanna | C156: Oristano
A157: 95076 | B157: Siapiccia | C157: Oristano
A158: 95058 | B158: Simala | C158: Oristano
A159: 95059 | B159: Simaxis | C159: Oristano
A160: 95060 | B160: Sini | C160: Oristano
A161: 95061 | B161: Siris | C161: Oristano
A162: 95078 | B162: Soddì | C162: Oristano
A163: 95062 | B163: Solarussa | C163: Oristano
A164: 95063 | B164: Sorradile | C164: Oristano
A165: 95087 | B165: Suni | C165: Oristano
A166: 95064 | B166: Tadasuni | C166: Oristano
A167: 95065 | B167: Terralba | C167: Oristano
A168: 95088 | B168: Tinnura | C168: Oristano
A169: 95066 | B169: Tramatza | C169: Oristano
A170: 95067 | B170: Tresnuraghes | C170: Oristano
A171: 95068 | B171: Ulà Tirso | C171: Oristano
A172: 95069 | B172: Uras | C172: Oristano
A173: 95070 | B173: Usellus | C173: Oristano
A174: 95048 | B174: Villa Sant'Antonio | C174: Oristano
A175: 95073 | B175: Villa Verde | C175: Oristano
A176: 95071 | B176: Villanova Truschedu | C176: Oristano
A177: 95072 | B177: Villaurbana | C177: Oristano
A178: 95074 | B178: Zeddiani | C178: Oristano
A179: 95075 | B179: Zerfaliu | C179: Oristano
A180: 90001 | B180: Aggius | C180: Sassari
A181: 90062 | B181: Aglientu | C181: Sassari
A182: 90002 | B182: Alà dei Sardi | C182: Sassari
A183: 90003 | B183: Alghero | C183: Sassari
A184: 90004 | B184: Anela | C184: Sassari
A185: 90005 | B185: Ardara | C185: Sassari
A186: 90006 | B186: Arzachena | C186: Sassari
A187: 90081 | B187: Badesi | C187: Sassari
A188: 90007 | B188: Banari | C188: Sassari
A189: 90008 | B189: Benetutti | C189: Sassari
A190: 90009 | B190: Berchidda | C190: Sassari
A191: 90010 | B191: Bessude | C191: Sassari
A192: 90011 | B192: Bonnanaro | C192: Sassari
A193: 90012 | B193: Bono | C193: Sassari
A194: 90013 | B194: Bonorva | C194: Sassari
A195: 90014 | B195: Bortigiadas | C195: Sassari
A196: 90015 | B196: Borutta | C196: Sassari
A197: 90016 | B197: Bottidda | C197: Sassari
A198: 90017 | B198: Buddusò | C198: Sassari
A199: 90091 | B199: Budoni | C199: Sassari
A200: 90018 | B200: Bultei | C200: Sassari
... 178 more rows

Sheet A- rifiuti da comuni-consorzi
A1: AGENZIA REGIONALE PER LA PROTEZIONE DELL’AMBIENTE DELLA SARDEGNA - ARPAS e OSSERVATORI PROVINCIALI RIFIUTI
A3: PROSPETTO A - 2019
A5: Nome Impianto | B5: Anno Riferimento | C5: Codice Istat Comune | D5: Nome Comune | E5: Mese | F5: Rifiuto (CER) | G5: Quantità in Tonnellate | H5: Frequenza (A=annuale: M=mensile) | I5: Ditta Trasporto | J5: Tariffa Conferimento (ESENTE IVA) | K5: Operazione di smaltimento o recupero | L5: Note | M5: Impianti Destinazione materiali a recupero | N5: Quantità materiali a recupero | O5: Impianti Destinazione scarti | P5: Quantità scarti allo smaltimento | Q5: Convenzione Conai | R5: Possesso delega (comune/ditta) | S5: Consorzio di fliera convenzionato
A6: CIPNES Gallura | B6: 2019 | C6: 90003 | D6: COMUNE DI ALGHERO | E6: 1 | F6: 200201 | G6: 91.31 | H6: M | I6: CIPNES Gallura | J6: * | K6: R13 - R3 | M6: CIPNES Gallura | N6: 91.31 | O6: CIPNES Gallura | P6: - | Q6: - | R6: - | S6: -
A7: CIPNES Gallura | B7: 2019 | C7: 90003 | D7: COMUNE DI ALGHERO | E7: 2 | F7: 200201 | G7: 16.095 | H7: M | I7: CIPNES Gallura | J7: * | K7: R13 - R3 | M7: CIPNES Gallura | N7: 16.095 | O7: CIPNES Gallura | P7: - | Q7: - | R7: - | S7: -
A8: CIPNES Gallura | B8: 2019 | C8: 90003 | D8: COMUNE DI ALGHERO | E8: 3 | F8: 200201 | G8: 54.21 | H8: M | I8: CIPNES Gallura | J8: * | K8: R13 - R3 | M8: CIPNES Gallura | N8: 54.21 | O8: CIPNES Gallura | P8: - | Q8: - | R8: - | S8: -
A9: CIPNES Gallura | B9: 2019 | C9: 90006 | D9: COMUNE DI ARZACHENA | E9: 1 | F9: 200138 | G9: 5.315 | H9: M | I9: CICLAT TRASP.AMBIENTE SOC.COOP. | J9: 110 | K9: R13 - R3 | M9: CIPNES Gallura | N9: 5.315 | O9: CIPNES Gallura | P9: - | Q9: - | R9: - | S9: -
A10: CIPNES Gallura | B10: 2019 | C10: 90006 | D10: COMUNE DI ARZACHENA | E10: 2 | F10: 200138 | G10: 7.94 | H10: M | I10: CICLAT TRASP.AMBIENTE SOC.COOP. | J10: 110 | K10: R13 - R3 | M10: CIPNES Gallura | N10: 7.94 | O10: CIPNES Gallura | P10: - | Q10: - | R10: - | S10: -
A11: CIPNES Gallura | B11: 2019 | C11: 90006 | D11: COMUNE DI ARZACHENA | E11: 2 | F11: 200138 | G11: 4.445 | H11: M | I11: S.C.E.A.S. SCARL | J11: 110 | K11: R13 - R3 | M11: CIPNES Gallura | N11: 4.445 | O11: CIPNES Gallura | P11: - | Q11: - | R11: - | S11: -
A12: CIPNES Gallura | B12: 2019 | C12: 90006 | D12: COMUNE DI ARZACHENA | E12: 3 | F12: 200138 | G12: 11.07 | H12: M | I12: CICLAT TRASP.AMBIENTE SOC.COOP. | J12: 110 | K12: R13 - R3 | M12: CIPNES Gallura | N12: 11.07 | O12: CIPNES Gallura | P12: - | Q12: - | R12: - | S12: -
A13: CIPNES Gallura | B13: 2019 | C13: 90006 | D13: COMUNE DI ARZACHENA | E13: 4 | F13: 200138 | G13: 13.295 | H13: M | I13: CICLAT TRASP.AMBIENTE SOC.COOP. | J13: 110 | K13: R13 - R3 | M13: CIPNES Gallura | N13: 13.295 | O13: CIPNES Gallura | P13: - | Q13: - | R13: - | S13: -
A14: CIPNES Gallura | B14: 2019 | C14: 90006 | D14: COMUNE DI ARZACHENA | E14: 5 | F14: 200138 | G14: 7.32 | H14: M | I14: S.C.E.A.S. SCARL | J14: 110 | K14: R13 - R3 | M14: CIPNES Gallura | N14: 7.32 | O14: CIPNES Gallura | P14: - | Q14: - | R14: - | S14: -
A15: CIPNES Gallura | B15: 2019 | C15: 90006 | D15: COMUNE DI ARZACHENA | E15: 5 | F15: 200138 | G15: 8.07 | H15: M | I15: CICLAT TRASP.AMBIENTE SOC.COOP. | J15: 110 | K15: R13 - R3 | M15: CIPNES Gallura | N15: 8.07 | O15: CIPNES Gallura | P15: - | Q15: - | R15: - | S15: -
A16: CIPNES Gallura | B16: 2019 | C16: 90006 | D16: COMUNE DI ARZACHENA | E16: 6 | F16: 200138 | G16: 9.755 | H16: M | I16: S.C.E.A.S. SCARL | J16: 110 | K16: R13 - R3 | M16: CIPNES Gallura | N16: 9.755 | O16: CIPNES Gallura | P16: - | Q16: - | R16: - | S16: -
A17: CIPNES Gallura | B17: 2019 | C17: 90006 | D17: COMUNE DI ARZACHENA | E17: 6 | F17: 200138 | G17: 7.505 | H17: M | I17: CICLAT TRASP.AMBIENTE SOC.COOP. | J17: 55 | K17: R13 - R3 | M17: CIPNES Gallura | N17: 7.505 | O17: CIPNES Gallura | P17: - | Q17: - | R17: - | S17: -
A18: CIPNES Gallura | B18: 2019 | C18: 90006 | D18: COMUNE DI ARZACHENA | E18: 7 | F18: 200138 | G18: 14.37 | H18: M | I18: CICLAT TRASP.AMBIENTE SOC.COOP. | J18: 55 | K18: R13 - R3 | M18: CIPNES Gallura | N18: 14.37 | O18: CIPNES Gallura | P18: - | Q18: - | R18: - | S18: -
A19: CIPNES Gallura | B19: 2019 | C19: 90006 | D19: COMUNE DI ARZACHENA | E19: 7 | F19: 200138 | G19: 12.59 | H19: M | I19: S.C.E.A.S. SCARL | J19: 55 | K19: R13 - R3 | M19: CIPNES Gallura | N19: 12.59 | O19: CIPNES Gallura | P19: - | Q19: - | R19: - | S19: -
A20: CIPNES Gallura | B20: 2019 | C20: 90006 | D20: COMUNE DI ARZACHENA | E20: 7 | F20: 200201 | G20: 5.78 | H20: M | I20: S.C.E.A.S. SCARL | J20: 55 | K20: R13 - R3 | M20: CIPNES Gallura | N20: 5.78 | O20: CIPNES Gallura | P20: - | Q20: - | R20: - | S20: -
A21: CIPNES Gallura | B21: 2019 | C21: 90006 | D21: COMUNE DI ARZACHENA | E21: 7 | F21: 200201 | G21: 8.935 | H21: M | I21: CICLAT TRASP.AMBIENTE SOC.COOP. | J21: 55 | K21: R13 - R3 | M21: CIPNES Gallura | N21: 8.935 | O21: CIPNES Gallura | P21: - | Q21: - | R21: - | S21: -
A22: CIPNES Gallura | B22: 2019 | C22: 90006 | D22: COMUNE DI ARZACHENA | E22: 8 | F22: 200138 | G22: 29.86 | H22: M | I22: S.C.E.A.S. SCARL | J22: 55 | K22: R13 - R3 | M22: CIPNES Gallura | N22: 29.86 | O22: CIPNES Gallura | P22: - | Q22: - | R22: - | S22: -
A23: CIPNES Gallura | B23: 2019 | C23: 90006 | D23: COMUNE DI ARZACHENA | E23: 9 | F23: 200138 | G23: 13.39 | H23: M | I23: S.C.E.A.S. SCARL | J23: 55 | K23: R13 - R3 | M23: CIPNES Gallura | N23: 13.39 | O23: CIPNES Gallura | P23: - | Q23: - | R23: - | S23: -
A24: CIPNES Gallura | B24: 2019 | C24: 90006 | D24: COMUNE DI ARZACHENA | E24: 9 | F24: 200201 | G24: 8.76 | H24: M | I24: S.C.E.A.S. SCARL | J24: 55 | K24: R13 - R3 | M24: CIPNES Gallura | N24: 8.76 | O24: CIPNES Gallura | P24: - | Q24: - | R24: - | S24: -
A25: CIPNES Gallura | B25: 2019 | C25: 90006 | D25: COMUNE DI ARZACHENA | E25: 9 | F25: 200138 | G25: 12.38 | H25: M | I25: CICLAT TRASP.AMBIENTE SOC.COOP. | J25: 55 | K25: R13 - R3 | M25: CIPNES Gallura | N25: 12.38 | O25: CIPNES Gallura | P25: - | Q25: - | R25: - | S25: -
A26: CIPNES Gallura | B26: 2019 | C26: 90006 | D26: COMUNE DI ARZACHENA | E26: 10 | F26: 200201 | G26: 22.235 | H26: M | I26: CICLAT TRASP.AMBIENTE SOC.COOP. | J26: 55 | K26: R13 - R3 | M26: CIPNES Gallura | N26: 22.235 | O26: CIPNES Gallura | P26: - | Q26: - | R26: - | S26: -
A27: CIPNES Gallura | B27: 2019 | C27: 90006 | D27: COMUNE DI ARZACHENA | E27: 10 | F27: 200138 | G27: 22.27 | H27: M | I27: CICLAT TRASP.AMBIENTE SOC.COOP. | J27: 55 | K27: R13 - R3 | M27: CIPNES Gallura | N27: 22.27 | O27: CIPNES Gallura | P27: - | Q27: - | R27: - | S27: -
A28: CIPNES Gallura | B28: 2019 | C28: 90006 | D28: COMUNE DI ARZACHENA | E28: 11 | F28: 200138 | G28: 16.29 | H28: M | I28: CICLAT TRASP.AMBIENTE SOC.COOP. | J28: 55 | K28: R13 - R3 | M28: CIPNES Gallura | N28: 16.29 | O28: CIPNES Gallura | P28: - | Q28: - | R28: - | S28: -
A29: CIPNES Gallura | B29: 2019 | C29: 90006 | D29: COMUNE DI ARZACHENA | E29: 11 | F29: 200201 | G29: 18.215 | H29: M | I29: CICLAT TRASP.AMBIENTE SOC.COOP. | J29: 55 | K29: R13 - R3 | M29: CIPNES Gallura | N29: 18.215 | O29: CIPNES Gallura | P29: - | Q29: - | R29: - | S29: -
A30: CIPNES Gallura | B30: 2019 | C30: 90006 | D30: COMUNE DI ARZACHENA | E30: 11 | F30: 200138 | G30: 6.595 | H30: M | I30: S.C.E.A.S. SCARL | J30: 55 | K30: R13 - R3 | M30: CIPNES Gallura | N30: 6.595 | O30: CIPNES Gallura | P30: - | Q30: - | R30: - | S30: -
A31: CIPNES Gallura | B31: 2019 | C31: 90006 | D31: COMUNE DI ARZACHENA | E31: 12 | F31: 200138 | G31: 37.32 | H31: M | I31: CICLAT TRASP.AMBIENTE SOC.COOP. | J31: 55 | K31: R13 - R3 | M31: CIPNES Gallura | N31: 37.32 | O31: CIPNES Gallura | P31: - | Q31: - | R31: - | S31: -
A32: CIPNES Gallura | B32: 2019 | C32: 90006 | D32: COMUNE DI ARZACHENA | E32: 12 | F32: 200201 | G32: 5.175 | H32: M | I32: CICLAT TRASP.AMBIENTE SOC.COOP. | J32: 55 | K32: R13 - R3 | M32: CIPNES Gallura | N32: 5.175 | O32: CIPNES Gallura | P32: - | Q32: - | R32: - | S32: -
A33: CIPNES Gallura | B33: 2019 | C33: 90009 | D33: COMUNE DI BERCHIDDA | E33: 2 | F33: 200201 | G33: 5.15 | H33: M | I33: ECONOVA SRL | J33: 70 | K33: R13 - R3 | M33: CIPNES Gallura | N33: 5.15 | O33: CIPNES Gallura | P33: - | Q33: - | R33: - | S33: -
A34: CIPNES Gallura | B34: 2019 | C34: 90009 | D34: COMUNE DI BERCHIDDA | E34: 2 | F34: 200138 | G34: 2.58 | H34: M | I34: C.I.P.N.E.S. GALLURA | J34: 110 | K34: R13 - R3 | M34: CIPNES Gallura | N34: 2.58 | O34: CIPNES Gallura | P34: - | Q34: - | R34: - | S34: -
A35: CIPNES Gallura | B35: 2019 | C35: 90009 | D35: COMUNE DI BERCHIDDA | E35: 2 | F35: 200201 | G35: 1.87 | H35: M | I35: C.I.P.N.E.S. GALLURA | J35: 70 | K35: R13 - R3 | M35: CIPNES Gallura | N35: 1.87 | O35: CIPNES Gallura | P35: - | Q35: - | R35: - | S35: -
A36: CIPNES Gallura | B36: 2019 | C36: 90009 | D36: COMUNE DI BERCHIDDA | E36: 3 | F36: 200138 | G36: 1.52 | H36: M | I36: C.I.P.N.E.S. GALLURA | J36: 110 | K36: R13 - R3 | M36: CIPNES Gallura | N36: 1.52 | O36: CIPNES Gallura | P36: - | Q36: - | R36: - | S36: -
A37: CIPNES Gallura | B37: 2019 | C37: 90009 | D37: COMUNE DI BERCHIDDA | E37: 4 | F37: 200201 | G37: 7.975 | H37: M | I37: ECONOVA SRL | J37: 70 | K37: R13 - R3 | M37: CIPNES Gallura | N37: 7.975 | O37: CIPNES Gallura | P37: - | Q37: - | R37: - | S37: -
A38: CIPNES Gallura | B38: 2019 | C38: 90009 | D38: COMUNE DI BERCHIDDA | E38: 5 | F38: 200138 | G38: 2.29 | H38: M | I38: C.I.P.N.E.S. GALLURA | J38: 110 | K38: R13 - R3 | M38: CIPNES Gallura | N38: 2.29 | O38: CIPNES Gallura | P38: - | Q38: - | R38: - | S38: -
A39: CIPNES Gallura | B39: 2019 | C39: 90009 | D39: COMUNE DI BERCHIDDA | E39: 5 | F39: 200201 | G39: 4.6 | H39: M | I39: ECONOVA SRL | J39: 70 | K39: R13 - R3 | M39: CIPNES Gallura | N39: 4.6 | O39: CIPNES Gallura | P39: - | Q39: - | R39: - | S39: -
A40: CIPNES Gallura | B40: 2019 | C40: 90009 | D40: COMUNE DI BERCHIDDA | E40: 6 | F40: 200201 | G40: 2.63 | H40: M | I40: ECONOVA SRL | J40: 70 | K40: R13 - R3 | M40: CIPNES Gallura | N40: 2.63 | O40: CIPNES Gallura | P40: - | Q40: - | R40: - | S40: -
A41: CIPNES Gallura | B41: 2019 | C41: 90009 | D41: COMUNE DI BERCHIDDA | E41: 6 | F41: 200138 | G41: 1.92 | H41: M | I41: C.I.P.N.E.S. GALLURA | J41: 110 | K41: R13 - R3 | M41: CIPNES Gallura | N41: 1.92 | O41: CIPNES Gallura | P41: - | Q41: - | R41: - | S41: -
A42: CIPNES Gallura | B42: 2019 | C42: 90009 | D42: COMUNE DI BERCHIDDA | E42: 7 | F42: 200138 | G42: 4.28 | H42: M | I42: C.I.P.N.E.S. GALLURA | J42: 110 | K42: R13 - R3 | M42: CIPNES Gallura | N42: 4.28 | O42: CIPNES Gallura | P42: - | Q42: - | R42: - | S42: -
A43: CIPNES Gallura | B43: 2019 | C43: 90009 | D43: COMUNE DI BERCHIDDA | E43: 8 | F43: 200201 | G43: 2.69 | H43: M | I43: ECONOVA SRL | J43: 70 | K43: R13 - R3 | M43: CIPNES Gallura | N43: 2.69 | O43: CIPNES Gallura | P43: - | Q43: - | R43: - | S43: -
A44: CIPNES Gallura | B44: 2019 | C44: 90009 | D44: COMUNE DI BERCHIDDA | E44: 8 | F44: 200138 | G44: 3.27 | H44: M | I44: C.I.P.N.E.S. GALLURA | J44: 110 | K44: R13 - R3 | M44: CIPNES Gallura | N44: 3.27 | O44: CIPNES Gallura | P44: - | Q44: - | R44: - | S44: -
A45: CIPNES Gallura | B45: 2019 | C45: 90009 | D45: COMUNE DI BERCHIDDA | E45: 9 | F45: 200138 | G45: 2.28 | H45: M | I45: C.I.P.N.E.S. GALLURA | J45: 110 | K45: R13 - R3 | M45: CIPNES Gallura | N45: 2.28 | O45: CIPNES Gallura | P45: - | Q45: - | R45: - | S45: -
A46: CIPNES Gallura | B46: 2019 | C46: 90009 | D46: COMUNE DI BERCHIDDA | E46: 9 | F46: 200201 | G46: 2.83 | H46: M | I46: ECONOVA SRL | J46: 70 | K46: R13 - R3 | M46: CIPNES Gallura | N46: 2.83 | O46: CIPNES Gallura | P46: - | Q46: - | R46: - | S46: -
A47: CIPNES Gallura | B47: 2019 | C47: 90009 | D47: COMUNE DI BERCHIDDA | E47: 10 | F47: 200138 | G47: 4.54 | H47: M | I47: C.I.P.N.E.S. GALLURA | J47: 110 | K47: R13 - R3 | M47: CIPNES Gallura | N47: 4.54 | O47: CIPNES Gallura | P47: - | Q47: - | R47: - | S47: -
A48: CIPNES Gallura | B48: 2019 | C48: 90009 | D48: COMUNE DI BERCHIDDA | E48: 11 | F48: 200201 | G48: 4.425 | H48: M | I48: ECONOVA SRL | J48: 70 | K48: R13 - R3 | M48: CIPNES Gallura | N48: 4.425 | O48: CIPNES Gallura | P48: - | Q48: - | R48: - | S48: -
A49: CIPNES Gallura | B49: 2019 | C49: 90009 | D49: COMUNE DI BERCHIDDA | E49: 12 | F49: 200138 | G49: 1.87 | H49: M | I49: C.I.P.N.E.S. GALLURA | J49: 110 | K49: R13 - R3 | M49: CIPNES Gallura | N49: 1.87 | O49: CIPNES Gallura | P49: - | Q49: - | R49: - | S49: -
A50: CIPNES Gallura | B50: 2019 | C50: 90083 | D50: COMUNE DI GOLFO ARANCI | E50: 4 | F50: 200201 | G50: 33.615 | H50: M | I50: ECOSERVICE S.R.L | J50: 70 | K50: R13 - R3 | M50: CIPNES Gallura | N50: 33.615 | O50: CIPNES Gallura | P50: - | Q50: - | R50: - | S50: -
A51: CIPNES Gallura | B51: 2019 | C51: 90083 | D51: COMUNE DI GOLFO ARANCI | E51: 5 | F51: 200201 | G51: 33.695 | H51: M | I51: ECOSERVICE S.R.L | J51: 70 | K51: R13 - R3 | M51: CIPNES Gallura | N51: 33.695 | O51: CIPNES Gallura | P51: - | Q51: - | R51: - | S51: -
A52: CIPNES Gallura | B52: 2019 | C52: 90083 | D52: COMUNE DI GOLFO ARANCI | E52: 6 | F52: 200201 | G52: 31.95 | H52: M | I52: ECOSERVICE S.R.L | J52: 70 | K52: R13 - R3 | M52: CIPNES Gallura | N52: 31.95 | O52: CIPNES Gallura | P52: - | Q52: - | R52: - | S52: -
A53: CIPNES Gallura | B53: 2019 | C53: 90083 | D53: COMUNE DI GOLFO ARANCI | E53: 7 | F53: 200201 | G53: 5.45 | H53: M | I53: DE VIZIA TRANSFER S.P.A. | J53: 70 | K53: R13 - R3 | M53: CIPNES Gallura | N53: 5.45 | O53: CIPNES Gallura | P53: - | Q53: - | R53: - | S53: -
A54: CIPNES Gallura | B54: 2019 | C54: 90083 | D54: COMUNE DI GOLFO ARANCI | E54: 7 | F54: 200201 | G54: 39.45 | H54: M | I54: ECOSERVICE S.R.L | J54: 70 | K54: R13 - R3 | M54: CIPNES Gallura | N54: 39.45 | O54: CIPNES Gallura | P54: - | Q54: - | R54: - | S54: -
A55: CIPNES Gallura | B55: 2019 | C55: 90083 | D55: COMUNE DI GOLFO ARANCI | E55: 8 | F55: 200201 | G55: 36.33 | H55: M | I55: ECOSERVICE S.R.L | J55: 70 | K55: R13 - R3 | M55: CIPNES Gallura | N55: 36.33 | O55: CIPNES Gallura | P55: - | Q55: - | R55: - | S55: -
A56: CIPNES Gallura | B56: 2019 | C56: 90083 | D56: COMUNE DI GOLFO ARANCI | E56: 9 | F56: 200201 | G56: 19.575 | H56: M | I56: ECOSERVICE S.R.L | J56: 70 | K56: R13 - R3 | M56: CIPNES Gallura | N56: 19.575 | O56: CIPNES Gallura | P56: - | Q56: - | R56: - | S56: -
A57: CIPNES Gallura | B57: 2019 | C57: 90083 | D57: COMUNE DI GOLFO ARANCI | E57: 10 | F57: 200201 | G57: 22.22 | H57: M | I57: ECOSERVICE S.R.L | J57: 70 | K57: R13 - R3 | M57: CIPNES Gallura | N57: 22.22 | O57: CIPNES Gallura | P57: - | Q57: - | R57: - | S57: -
A58: CIPNES Gallura | B58: 2019 | C58: 90083 | D58: COMUNE DI GOLFO ARANCI | E58: 11 | F58: 200201 | G58: 31.105 | H58: M | I58: ECOSERVICE S.R.L | J58: 70 | K58: R13 - R3 | M58: CIPNES Gallura | N58: 31.105 | O58: CIPNES Gallura | P58: - | Q58: - | R58: - | S58: -
A59: CIPNES Gallura | B59: 2019 | C59: 90083 | D59: COMUNE DI GOLFO ARANCI | E59: 12 | F59: 200201 | G59: 12.785 | H59: M | I59: ECOSERVICE S.R.L | J59: 70 | K59: R13 - R3 | M59: CIPNES Gallura | N59: 12.785 | O59: CIPNES Gallura | P59: - | Q59: - | R59: - | S59: -
A60: CIPNES Gallura | B60: 2019 | C60: 90083 | D60: COMUNE DI GOLFO ARANCI | E60: 6 | F60: 200138 | G60: 0.225 | H60: M | I60: ECOSERVICE S.R.L | J60: 70 | K60: R13 - R3 | M60: CIPNES Gallura | N60: =225/1000 -> 0.225 | O60: CIPNES Gallura | P60: - | Q60: - | R60: - | S60: -
A61: CIPNES Gallura | B61: 2019 | C61: 90083 | D61: COMUNE DI GOLFO ARANCI | E61: 10 | F61: 200138 | G61: 0.1 | H61: M | I61: ECOSERVICE S.R.L | J61: 70 | K61: R13 - R3 | M61: CIPNES Gallura | N61: =100/1000 -> 0.1 | O61: CIPNES Gallura | P61: - | Q61: - | R61: - | S61: -
A62: CIPNES Gallura | B62: 2019 | C62: 90084 | D62: COMUNE DI LOIRI PORTO SAN PAOLO | E62: 1 | F62: 200201 | G62: 6.35 | H62: M | I62: MULTISERVICE SRL | J62: 70 | K62: R13 - R3 | M62: CIPNES Gallura | N62: 6.35 | O62: CIPNES Gallura | P62: - | Q62: - | R62: - | S62: -
A63: CIPNES Gallura | B63: 2019 | C63: 90084 | D63: COMUNE DI LOIRI PORTO SAN PAOLO | E63: 2 | F63: 200201 | G63: 9.9 | H63: M | I63: MULTISERVICE SRL | J63: 70 | K63: R13 - R3 | M63: CIPNES Gallura | N63: 9.9 | O63: CIPNES Gallura | P63: - | Q63: - | R63: - | S63: -
A64: CIPNES Gallura | B64: 2019 | C64: 90084 | D64: COMUNE DI LOIRI PORTO SAN PAOLO | E64: 3 | F64: 200201 | G64: 27.205 | H64: M | I64: MULTISERVICE SRL | J64: 70 | K64: R13 - R3 | M64: CIPNES Gallura | N64: 27.205 | O64: CIPNES Gallura | P64: - | Q64: - | R64: - | S64: -
A65: CIPNES Gallura | B65: 2019 | C65: 90084 | D65: COMUNE DI LOIRI PORTO SAN PAOLO | E65: 4 | F65: 200201 | G65: 15.255 | H65: M | I65: MULTISERVICE SRL | J65: 70 | K65: R13 - R3 | M65: CIPNES Gallura | N65: 15.255 | O65: CIPNES Gallura | P65: - | Q65: - | R65: - | S65: -
A66: CIPNES Gallura | B66: 2019 | C66: 90084 | D66: COMUNE DI LOIRI PORTO SAN PAOLO | E66: 5 | F66: 200201 | G66: 33.615 | H66: M | I66: MULTISERVICE SRL | J66: 70 | K66: R13 - R3 | M66: CIPNES Gallura | N66: 33.615 | O66: CIPNES Gallura | P66: - | Q66: - | R66: - | S66: -
A67: CIPNES Gallura | B67: 2019 | C67: 90084 | D67: COMUNE DI LOIRI PORTO SAN PAOLO | E67: 6 | F67: 200201 | G67: 50.3 | H67: M | I67: MULTISERVICE SRL | J67: 70 | K67: R13 - R3 | M67: CIPNES Gallura | N67: 50.3 | O67: CIPNES Gallura | P67: - | Q67: - | R67: - | S67: -
A68: CIPNES Gallura | B68: 2019 | C68: 90084 | D68: COMUNE DI LOIRI PORTO SAN PAOLO | E68: 7 | F68: 200201 | G68: 36.25 | H68: M | I68: MULTISERVICE SRL | J68: 70 | K68: R13 - R3 | M68: CIPNES Gallura | N68: 36.25 | O68: CIPNES Gallura | P68: - | Q68: - | R68: - | S68: -
A69: CIPNES Gallura | B69: 2019 | C69: 90084 | D69: COMUNE DI LOIRI PORTO SAN PAOLO | E69: 8 | F69: 200201 | G69: 42.585 | H69: M | I69: MULTISERVICE SRL | J69: 70 | K69: R13 - R3 | M69: CIPNES Gallura | N69: 42.585 | O69: CIPNES Gallura | P69: - | Q69: - | R69: - | S69: -
A70: CIPNES Gallura | B70: 2019 | C70: 90084 | D70: COMUNE DI LOIRI PORTO SAN PAOLO | E70: 9 | F70: 200201 | G70: 32.65 | H70: M | I70: MULTISERVICE SRL | J70: 70 | K70: R13 - R3 | M70: CIPNES Gallura | N70: 32.65 | O70: CIPNES Gallura | P70: - | Q70: - | R70: - | S70: -
A71: CIPNES Gallura | B71: 2019 | C71: 90084 | D71: COMUNE DI LOIRI PORTO SAN PAOLO | E71: 10 | F71: 200201 | G71: 17.38 | H71: M | I71: MULTISERVICE SRL | J71: 70 | K71: R13 - R3 | M71: CIPNES Gallura | N71: 17.38 | O71: CIPNES Gallura | P71: - | Q71: - | R71: - | S71: -
A72: CIPNES Gallura | B72: 2019 | C72: 90084 | D72: COMUNE DI LOIRI PORTO SAN PAOLO | E72: 11 | F72: 200201 | G72: 8.89 | H72: M | I72: MULTISERVICE SRL | J72: 70 | K72: R13 - R3 | M72: CIPNES Gallura | N72: 8.89 | O72: CIPNES Gallura | P72: - | Q72: - | R72: - | S72: -
A73: CIPNES Gallura | B73: 2019 | C73: 90084 | D73: COMUNE DI LOIRI PORTO SAN PAOLO | E73: 12 | F73: 200201 | G73: 4.22 | H73: M | I73: MULTISERVICE SRL | J73: 70 | K73: R13 - R3 | M73: CIPNES Gallura | N73: 4.22 | O73: CIPNES Gallura | P73: - | Q73: - | R73: - | S73: -
A74: CIPNES Gallura | B74: 2019 | C74: 90041 | D74: COMUNE DI MONTI | E74: 1 | F74: 200138 | G74: 2.27 | H74: M | I74: CICLAT TRASP.AMBIENTE SOC.COOP. | J74: 110 | K74: R13 - R3 | M74: CIPNES Gallura | N74: 2.27 | O74: CIPNES Gallura | P74: - | Q74: - | R74: - | S74: -
A75: CIPNES Gallura | B75: 2019 | C75: 90041 | D75: COMUNE DI MONTI | E75: 3 | F75: 200138 | G75: 2.91 | H75: M | I75: CICLAT TRASP.AMBIENTE SOC.COOP. | J75: 110 | K75: R13 - R3 | M75: CIPNES Gallura | N75: 2.91 | O75: CIPNES Gallura | P75: - | Q75: - | R75: - | S75: -
A76: CIPNES Gallura | B76: 2019 | C76: 90041 | D76: COMUNE DI MONTI | E76: 7 | F76: 200138 | G76: 4.285 | H76: M | I76: CICLAT TRASP.AMBIENTE SOC.COOP. | J76: 70 | K76: R13 - R3 | M76: CIPNES Gallura | N76: 4.285 | O76: CIPNES Gallura | P76: - | Q76: - | R76: - | S76: -
A77: CIPNES Gallura | B77: 2019 | C77: 90041 | D77: COMUNE DI MONTI | E77: 7 | F77: 200201 | G77: 1.885 | H77: M | I77: CICLAT TRASP.AMBIENTE SOC.COOP. | J77: 70 | K77: R13 - R3 | M77: CIPNES Gallura | N77: 1.885 | O77: CIPNES Gallura | P77: - | Q77: - | R77: - | S77: -
A78: CIPNES Gallura | B78: 2019 | C78: 90041 | D78: COMUNE DI MONTI | E78: 9 | F78: 200201 | G78: 6.82 | H78: M | I78: CICLAT TRASP.AMBIENTE SOC.COOP. | J78: 70 | K78: R13 - R3 | M78: CIPNES Gallura | N78: 6.82 | O78: CIPNES Gallura | P78: - | Q78: - | R78: - | S78: -
A79: CIPNES Gallura | B79: 2019 | C79: 90041 | D79: COMUNE DI MONTI | E79: 12 | F79: 200138 | G79: 4.74 | H79: M | I79: CICLAT TRASP.AMBIENTE SOC.COOP. | J79: 70 | K79: R13 - R3 | M79: CIPNES Gallura | N79: 4.74 | O79: CIPNES Gallura | P79: - | Q79: - | R79: - | S79: -
A80: CIPNES Gallura | B80: 2019 | C80: 90047 | D80: COMUNE DI OLBIA | E80: 1 | F80: 150103 | G80: 13.46 | H80: M | I80: ECOSERVICE S.R.L | J80: 110 | K80: R13 - R3 | M80: CIPNES Gallura | N80: 13.46 | O80: CIPNES Gallura | P80: - | Q80: - | R80: - | S80: -
A81: CIPNES Gallura | B81: 2019 | C81: 90047 | D81: COMUNE DI OLBIA | E81: 1 | F81: 200138 | G81: 5.93 | H81: M | I81: DE VIZIA TRANSFER S.P.A. | J81: 110 | K81: R13 - R3 | M81: CIPNES Gallura | N81: 5.93 | O81: CIPNES Gallura | P81: - | Q81: - | R81: - | S81: -
A82: CIPNES Gallura | B82: 2019 | C82: 90047 | D82: COMUNE DI OLBIA | E82: 2 | F82: 150103 | G82: 5.835 | H82: M | I82: ECOSERVICE S.R.L | J82: 110 | K82: R13 - R3 | M82: CIPNES Gallura | N82: 5.835 | O82: CIPNES Gallura | P82: - | Q82: - | R82: - | S82: -
A83: CIPNES Gallura | B83: 2019 | C83: 90047 | D83: COMUNE DI OLBIA | E83: 4 | F83: 150103 | G83: 0.415 | H83: M | I83: DE VIZIA TRANSFER S.P.A. | J83: 110 | K83: R13 - R3 | M83: CIPNES Gallura | N83: =660/1000 -> 0.66 | O83: CIPNES Gallura | P83: - | Q83: - | R83: - | S83: -
A84: CIPNES Gallura | B84: 2019 | C84: 90047 | D84: COMUNE DI OLBIA | E84: 7 | F84: 150103 | G84: 10.025 | H84: M | I84: ECOSERVICE S.R.L | J84: 110 | K84: R13 - R3 | M84: CIPNES Gallura | N84: 10.025 | O84: CIPNES Gallura | P84: - | Q84: - | R84: - | S84: -
A85: CIPNES Gallura | B85: 2019 | C85: 90047 | D85: COMUNE DI OLBIA | E85: 7 | F85: 200138 | G85: 4.77 | H85: M | I85: DE VIZIA TRANSFER S.P.A. | J85: 30 | K85: R13 - R3 | M85: CIPNES Gallura | N85: 4.77 | O85: CIPNES Gallura | P85: - | Q85: - | R85: - | S85: -
A86: CIPNES Gallura | B86: 2019 | C86: 90047 | D86: COMUNE DI OLBIA | E86: 8 | F86: 150103 | G86: 44.975 | H86: M | I86: ECOSERVICE S.R.L | J86: 30 | K86: R13 - R3 | M86: CIPNES Gallura | N86: 43.185 | O86: CIPNES Gallura | P86: - | Q86: - | R86: - | S86: -
A87: CIPNES Gallura | B87: 2019 | C87: 90047 | D87: COMUNE DI OLBIA | E87: 8 | F87: 200201 | G87: 170.36 | H87: M | I87: ECOSERVICE S.R.L | J87: 30 | K87: R13 - R3 | M87: CIPNES Gallura | N87: 172.15 | O87: CIPNES Gallura | P87: - | Q87: - | R87: - | S87: -
A88: CIPNES Gallura | B88: 2019 | C88: 90047 | D88: COMUNE DI OLBIA | E88: 9 | F88: 150103 | G88: 24.67 | H88: M | I88: ECOSERVICE S.R.L | J88: 70 | K88: R13 - R3 | M88: CIPNES Gallura | N88: 24.67 | O88: CIPNES Gallura | P88: - | Q88: - | R88: - | S88: -
A89: CIPNES Gallura | B89: 2019 | C89: 90047 | D89: COMUNE DI OLBIA | E89: 9 | F89: 200201 | G89: 203.345 | H89: M | I89: ECOSERVICE S.R.L | J89: 30 | K89: R13 - R3 | M89: CIPNES Gallura | N89: 203.345 | O89: CIPNES Gallura | P89: - | Q89: - | R89: - | S89: -
A90: CIPNES Gallura | B90: 2019 | C90: 90047 | D90: COMUNE DI OLBIA | E90: 9 | F90: 150103 | G90: 4.42 | H90: M | I90: DE VIZIA TRANSFER S.P.A. | J90: 30 | K90: R13 - R3 | M90: CIPNES Gallura | N90: 4.42 | O90: CIPNES Gallura | P90: - | Q90: - | R90: - | S90: -
A91: CIPNES Gallura | B91: 2019 | C91: 90047 | D91: COMUNE DI OLBIA | E91: 10 | F91: 150103 | G91: 40.57 | H91: M | I91: ECOSERVICE S.R.L | J91: 30 | K91: R13 - R3 | M91: CIPNES Gallura | N91: 40.57 | O91: CIPNES Gallura | P91: - | Q91: - | R91: - | S91: -
A92: CIPNES Gallura | B92: 2019 | C92: 90047 | D92: COMUNE DI OLBIA | E92: 10 | F92: 200201 | G92: 169.125 | H92: M | I92: ECOSERVICE S.R.L | J92: 30 | K92: R13 - R3 | M92: CIPNES Gallura | N92: 169.125 | O92: CIPNES Gallura | P92: - | Q92: - | R92: - | S92: -
A93: CIPNES Gallura | B93: 2019 | C93: 90047 | D93: COMUNE DI OLBIA | E93: 10 | F93: 170201 | G93: 23.84 | H93: M | I93: ECOSERVICE S.R.L | J93: 30 | K93: R13 - R3 | M93: CIPNES Gallura | N93: 23.84 | O93: CIPNES Gallura | P93: - | Q93: - | R93: - | S93: -
A94: CIPNES Gallura | B94: 2019 | C94: 90047 | D94: COMUNE DI OLBIA | E94: 11 | F94: 200201 | G94: 186.605 | H94: M | I94: ECOSERVICE S.R.L | J94: 30 | K94: R13 - R3 | M94: CIPNES Gallura | N94: 186.605 | O94: CIPNES Gallura | P94: - | Q94: - | R94: - | S94: -
A95: CIPNES Gallura | B95: 2019 | C95: 90047 | D95: COMUNE DI OLBIA | E95: 11 | F95: 150103 | G95: 25.95 | H95: M | I95: ECOSERVICE S.R.L | J95: 30 | K95: R13 - R3 | M95: CIPNES Gallura | N95: 25.95 | O95: CIPNES Gallura | P95: - | Q95: - | R95: - | S95: -
A96: CIPNES Gallura | B96: 2019 | C96: 90047 | D96: COMUNE DI OLBIA | E96: 12 | F96: 200201 | G96: 170 | H96: M | I96: ECOSERVICE S.R.L | J96: 30 | K96: R13 - R3 | M96: CIPNES Gallura | N96: 171.37 | O96: CIPNES Gallura | P96: - | Q96: - | R96: - | S96: -
A97: CIPNES Gallura | B97: 2019 | C97: 90047 | D97: COMUNE DI OLBIA | E97: 12 | F97: 150103 | G97: 19.13 | H97: M | I97: ECOSERVICE S.R.L | J97: 30 | K97: R13 - R3 | M97: CIPNES Gallura | N97: 17.77 | O97: CIPNES Gallura | P97: - | Q97: - | R97: - | S97: -
A98: CIPNES Gallura | B98: 2019 | C98: 90090 | D98: COMUNE DI PADRU | E98: 4 | F98: 200201 | G98: 15.185 | H98: M | I98: ECO OLBIA SRL | J98: 70 | K98: R13 - R3 | M98: CIPNES Gallura | N98: 15.185 | O98: CIPNES Gallura | P98: - | Q98: - | R98: - | S98: -
A99: CIPNES Gallura | B99: 2019 | C99: 90090 | D99: COMUNE DI PADRU | E99: 6 | F99: 200201 | G99: 12.75 | H99: M | I99: ECO OLBIA SRL | J99: 60 | K99: R13 - R3 | M99: CIPNES Gallura | N99: 12.75 | O99: CIPNES Gallura | P99: - | Q99: - | R99: - | S99: -
A100: CIPNES Gallura | B100: 2019 | C100: 90090 | D100: COMUNE DI PADRU | E100: 7 | F100: 200201 | G100: 12.085 | H100: M | I100: ECO OLBIA SRL | J100: 70 | K100: R13 - R3 | M100: CIPNES Gallura | N100: 12.085 | O100: CIPNES Gallura | P100: - | Q100: - | R100: - | S100: -
A101: CIPNES Gallura | B101: 2019 | C101: 90090 | D101: COMUNE DI PADRU | E101: 9 | F101: 200201 | G101: 7.725 | H101: M | I101: ECO OLBIA SRL | J101: 60 | K101: R13 - R3 | M101: CIPNES Gallura | N101: 7.725 | O101: CIPNES Gallura | P101: - | Q101: - | R101: - | S101: -
A102: CIPNES Gallura | B102: 2019 | C102: 90054 | D102: COMUNE DI PALAU | E102: 4 | F102: 200201 | G102: 15.18 | H102: M | I102: AMBIENTE ITALIA SRL | J102: 70 | K102: R13 - R3 | M102: CIPNES Gallura | N102: 15.18 | O102: CIPNES Gallura | P102: - | Q102: - | R102: - | S102: -
A103: CIPNES Gallura | B103: 2019 | C103: 90054 | D103: COMUNE DI PALAU | E103: 5 | F103: 200201 | G103: 34.465 | H103: M | I103: AMBIENTE ITALIA SRL | J103: 70 | K103: R13 - R3 | M103: CIPNES Gallura | N103: 34.465 | O103: CIPNES Gallura | P103: - | Q103: - | R103: - | S103: -
A104: CIPNES Gallura | B104: 2019 | C104: 90054 | D104: COMUNE DI PALAU | E104: 5 | F104: 150103 | G104: 16.555 | H104: M | I104: AMBIENTE ITALIA SRL | J104: 70 | K104: R13 - R3 | M104: CIPNES Gallura | N104: 16.555 | O104: CIPNES Gallura | P104: - | Q104: - | R104: - | S104: -
A105: CIPNES Gallura | B105: 2019 | C105: 90054 | D105: COMUNE DI PALAU | E105: 6 | F105: 150103 | G105: 14.445 | H105: M | I105: AMBIENTE ITALIA SRL | J105: 70 | K105: R13 - R3 | M105: CIPNES Gallura | N105: 14.445 | O105: CIPNES Gallura | P105: - | Q105: - | R105: - | S105: -
A106: CIPNES Gallura | B106: 2019 | C106: 90054 | D106: COMUNE DI PALAU | E106: 6 | F106: 200201 | G106: 24.73 | H106: M | I106: AMBIENTE ITALIA SRL | J106: 70 | K106: R13 - R3 | M106: CIPNES Gallura | N106: 24.73 | O106: CIPNES Gallura | P106: - | Q106: - | R106: - | S106: -
A107: CIPNES Gallura | B107: 2019 | C107: 90054 | D107: COMUNE DI PALAU | E107: 7 | F107: 200201 | G107: 30.93 | H107: M | I107: AMBIENTE ITALIA SRL | J107: 70 | K107: R13 - R3 | M107: CIPNES Gallura | N107: 30.93 | O107: CIPNES Gallura | P107: - | Q107: - | R107: - | S107: -
A108: CIPNES Gallura | B108: 2019 | C108: 90054 | D108: COMUNE DI PALAU | E108: 7 | F108: 150103 | G108: 16.83 | H108: M | I108: AMBIENTE ITALIA SRL | J108: 70 | K108: R13 - R3 | M108: CIPNES Gallura | N108: 16.83 | O108: CIPNES Gallura | P108: - | Q108: - | R108: - | S108: -
A109: CIPNES Gallura | B109: 2019 | C109: 90054 | D109: COMUNE DI PALAU | E109: 8 | F109: 150103 | G109: 13.25 | H109: M | I109: AMBIENTE ITALIA SRL | J109: 70 | K109: R13 - R3 | M109: CIPNES Gallura | N109: 13.25 | O109: CIPNES Gallura | P109: - | Q109: - | R109: - | S109: -
A110: CIPNES Gallura | B110: 2019 | C110: 90054 | D110: COMUNE DI PALAU | E110: 8 | F110: 200201 | G110: 22.115 | H110: M | I110: AMBIENTE ITALIA SRL | J110: 70 | K110: R13 - R3 | M110: CIPNES Gallura | N110: 22.115 | O110: CIPNES Gallura | P110: - | Q110: - | R110: - | S110: -
A111: CIPNES Gallura | B111: 2019 | C111: 90054 | D111: COMUNE DI PALAU | E111: 9 | F111: 150103 | G111: 11.335 | H111: M | I111: AMBIENTE ITALIA SRL | J111: 70 | K111: R13 - R3 | M111: CIPNES Gallura | N111: 11.335 | O111: CIPNES Gallura | P111: - | Q111: - | R111: - | S111: -
A112: CIPNES Gallura | B112: 2019 | C112: 90054 | D112: COMUNE DI PALAU | E112: 9 | F112: 200201 | G112: 26.335 | H112: M | I112: AMBIENTE ITALIA SRL | J112: 70 | K112: R13 - R3 | M112: CIPNES Gallura | N112: 26.335 | O112: CIPNES Gallura | P112: - | Q112: - | R112: - | S112: -
A113: CIPNES Gallura | B113: 2019 | C113: 90054 | D113: COMUNE DI PALAU | E113: 10 | F113: 150103 | G113: 19.405 | H113: M | I113: AMBIENTE ITALIA SRL | J113: 70 | K113: R13 - R3 | M113: CIPNES Gallura | N113: 19.405 | O113: CIPNES Gallura | P113: - | Q113: - | R113: - | S113: -
A114: CIPNES Gallura | B114: 2019 | C114: 90054 | D114: COMUNE DI PALAU | E114: 10 | F114: 200201 | G114: 19.78 | H114: M | I114: AMBIENTE ITALIA SRL | J114: 70 | K114: R13 - R3 | M114: CIPNES Gallura | N114: 19.78 | O114: CIPNES Gallura | P114: - | Q114: - | R114: - | S114: -
A115: CIPNES Gallura | B115: 2019 | C115: 90054 | D115: COMUNE DI PALAU | E115: 11 | F115: 150103 | G115: 7.5 | H115: M | I115: AMBIENTE ITALIA SRL | J115: 70 | K115: R13 - R3 | M115: CIPNES Gallura | N115: 7.5 | O115: CIPNES Gallura | P115: - | Q115: - | R115: - | S115: -
A116: CIPNES Gallura | B116: 2019 | C116: 90054 | D116: COMUNE DI PALAU | E116: 11 | F116: 200201 | G116: 25.025 | H116: M | I116: AMBIENTE ITALIA SRL | J116: 70 | K116: R13 - R3 | M116: CIPNES Gallura | N116: 25.025 | O116: CIPNES Gallura | P116: - | Q116: - | R116: - | S116: -
A117: CIPNES Gallura | B117: 2019 | C117: 90054 | D117: COMUNE DI PALAU | E117: 11 | F117: 200138 | G117: 4.52 | H117: M | I117: AMBIENTE ITALIA SRL | J117: 70 | K117: R13 - R3 | M117: CIPNES Gallura | N117: 4.52 | O117: CIPNES Gallura | P117: - | Q117: - | R117: - | S117: -
A118: CIPNES Gallura | B118: 2019 | C118: 90054 | D118: COMUNE DI PALAU | E118: 12 | F118: 200201 | G118: 26.555 | H118: M | I118: AMBIENTE ITALIA SRL | J118: 70 | K118: R13 - R3 | M118: CIPNES Gallura | N118: 26.555 | O118: CIPNES Gallura | P118: - | Q118: - | R118: - | S118: -
A119: CIPNES Gallura | B119: 2019 | C119: 90054 | D119: COMUNE DI PALAU | E119: 12 | F119: 200138 | G119: 4.335 | H119: M | I119: AMBIENTE ITALIA SRL | J119: 70 | K119: R13 - R3 | M119: CIPNES Gallura | N119: 4.335 | O119: CIPNES Gallura | P119: - | Q119: - | R119: - | S119: -
A120: CIPNES Gallura | B120: 2019 | C120: 90057 | D120: COMUNE DI PLOAGHE | E120: 1 | F120: 200201 | G120: 13.57 | H120: M | I120: C.I.P.N.E.S. GALLURA | J120: 70 | K120: R13 - R3 | M120: CIPNES Gallura | N120: 13.57 | O120: CIPNES Gallura | P120: - | Q120: - | R120: - | S120: -
A121: CIPNES Gallura | B121: 2019 | C121: 90057 | D121: COMUNE DI PLOAGHE | E121: 2 | F121: 200201 | G121: 6.05 | H121: M | I121: C.I.P.N.E.S. GALLURA | J121: 70 | K121: R13 - R3 | M121: CIPNES Gallura | N121: 6.05 | O121: CIPNES Gallura | P121: - | Q121: - | R121: - | S121: -
A122: CIPNES Gallura | B122: 2019 | C122: 90057 | D122: COMUNE DI PLOAGHE | E122: 3 | F122: 200201 | G122: 5.94 | H122: M | I122: C.I.P.N.E.S. GALLURA | J122: 70 | K122: R13 - R3 | M122: CIPNES Gallura | N122: 5.94 | O122: CIPNES Gallura | P122: - | Q122: - | R122: - | S122: -
A123: CIPNES Gallura | B123: 2019 | C123: 90057 | D123: COMUNE DI PLOAGHE | E123: 5 | F123: 200201 | G123: 5.98 | H123: M | I123: C.I.P.N.E.S. GALLURA | J123: 70 | K123: R13 - R3 | M123: CIPNES Gallura | N123: 5.98 | O123: CIPNES Gallura | P123: - | Q123: - | R123: - | S123: -
A124: CIPNES Gallura | B124: 2019 | C124: 91073 | D124: COMUNE DI POSADA | E124: 1 | F124: 200201 | G124: 2.83 | H124: M | I124: CONSORZIO FORMULA AMBIENTE | J124: 55 | K124: R13 - R3 | M124: CIPNES Gallura | N124: 2.83 | O124: CIPNES Gallura | P124: - | Q124: - | R124: - | S124: -
A125: CIPNES Gallura | B125: 2019 | C125: 91073 | D125: COMUNE DI POSADA | E125: 3 | F125: 200201 | G125: 4.765 | H125: M | I125: CONSORZIO FORMULA AMBIENTE | J125: 70 | K125: R13 - R3 | M125: CIPNES Gallura | N125: 4.765 | O125: CIPNES Gallura | P125: - | Q125: - | R125: - | S125: -
A126: CIPNES Gallura | B126: 2019 | C126: 91073 | D126: COMUNE DI POSADA | E126: 4 | F126: 200201 | G126: 10.2 | H126: M | I126: CONSORZIO FORMULA AMBIENTE | J126: 70 | K126: R13 - R3 | M126: CIPNES Gallura | N126: 10.2 | O126: CIPNES Gallura | P126: - | Q126: - | R126: - | S126: -
A127: CIPNES Gallura | B127: 2019 | C127: 91073 | D127: COMUNE DI POSADA | E127: 5 | F127: 200201 | G127: 12.2 | H127: M | I127: CONSORZIO FORMULA AMBIENTE | J127: 60 | K127: R13 - R3 | M127: CIPNES Gallura | N127: 12.2 | O127: CIPNES Gallura | P127: - | Q127: - | R127: - | S127: -
A128: CIPNES Gallura | B128: 2019 | C128: 91073 | D128: COMUNE DI POSADA | E128: 6 | F128: 200201 | G128: 17.235 | H128: M | I128: CONSORZIO FORMULA AMBIENTE | J128: 60 | K128: R13 - R3 | M128: CIPNES Gallura | N128: 17.235 | O128: CIPNES Gallura | P128: - | Q128: - | R128: - | S128: -
A129: CIPNES Gallura | B129: 2019 | C129: 91073 | D129: COMUNE DI POSADA | E129: 7 | F129: 200201 | G129: 25.265 | H129: M | I129: CONSORZIO FORMULA AMBIENTE | J129: 60 | K129: R13 - R3 | M129: CIPNES Gallura | N129: 25.265 | O129: CIPNES Gallura | P129: - | Q129: - | R129: - | S129: -
A130: CIPNES Gallura | B130: 2019 | C130: 91073 | D130: COMUNE DI POSADA | E130: 8 | F130: 200201 | G130: 17.16 | H130: M | I130: CONSORZIO FORMULA AMBIENTE | J130: 60 | K130: R13 - R3 | M130: CIPNES Gallura | N130: 17.16 | O130: CIPNES Gallura | P130: - | Q130: - | R130: - | S130: -
A131: CIPNES Gallura | B131: 2019 | C131: 91073 | D131: COMUNE DI POSADA | E131: 9 | F131: 200201 | G131: 10.005 | H131: M | I131: CONSORZIO FORMULA AMBIENTE | J131: 60 | K131: R13 - R3 | M131: CIPNES Gallura | N131: 10.005 | O131: CIPNES Gallura | P131: - | Q131: - | R131: - | S131: -
A132: CIPNES Gallura | B132: 2019 | C132: 91073 | D132: COMUNE DI POSADA | E132: 10 | F132: 200201 | G132: 8.36 | H132: M | I132: CONSORZIO FORMULA AMBIENTE | J132: 70 | K132: R13 - R3 | M132: CIPNES Gallura | N132: 8.36 | O132: CIPNES Gallura | P132: - | Q132: - | R132: - | S132: -
A133: CIPNES Gallura | B133: 2019 | C133: 91073 | D133: COMUNE DI POSADA | E133: 11 | F133: 200201 | G133: 7.225 | H133: M | I133: CONSORZIO FORMULA AMBIENTE | J133: 55 | K133: R13 - R3 | M133: CIPNES Gallura | N133: 7.225 | O133: CIPNES Gallura | P133: - | Q133: - | R133: - | S133: -
A134: CIPNES Gallura | B134: 2019 | C134: 91073 | D134: COMUNE DI POSADA | E134: 12 | F134: 200201 | G134: 3.46 | H134: M | I134: CONSORZIO FORMULA AMBIENTE | J134: 55 | K134: R13 - R3 | M134: CIPNES Gallura | N134: 3.46 | O134: CIPNES Gallura | P134: - | Q134: - | R134: - | S134: -
A135: CIPNES Gallura | B135: 2019 | C135: 91073 | D135: COMUNE DI POSADA | E135: 2 | F135: 200201 | G135: 5.1 | H135: M | I135: CONSORZIO FORMULA AMBIENTE | J135: 70 | K135: R13 - R3 | M135: CIPNES Gallura | N135: 5.1 | O135: CIPNES Gallura | P135: - | Q135: - | R135: - | S135: -
A136: CIPNES Gallura | B136: 2019 | C136: 90092 | D136: COMUNE DI SAN TEODORO | E136: 1 | F136: 200201 | G136: 1.85 | H136: M | I136: SAN GERMANO SPA | J136: 70 | K136: R13 - R3 | M136: CIPNES Gallura | N136: 1.85 | O136: CIPNES Gallura | P136: - | Q136: - | R136: - | S136: -
A137: CIPNES Gallura | B137: 2019 | C137: 90092 | D137: COMUNE DI SAN TEODORO | E137: 2 | F137: 200201 | G137: 2.205 | H137: M | I137: SAN GERMANO SPA | J137: 70 | K137: R13 - R3 | M137: CIPNES Gallura | N137: 2.205 | O137: CIPNES Gallura | P137: - | Q137: - | R137: - | S137: -
A138: CIPNES Gallura | B138: 2019 | C138: 90092 | D138: COMUNE DI SAN TEODORO | E138: 3 | F138: 200201 | G138: 11.685 | H138: M | I138: SAN GERMANO SPA | J138: 70 | K138: R13 - R3 | M138: CIPNES Gallura | N138: 11.685 | O138: CIPNES Gallura | P138: - | Q138: - | R138: - | S138: -
A139: CIPNES Gallura | B139: 2019 | C139: 90092 | D139: COMUNE DI SAN TEODORO | E139: 4 | F139: 200201 | G139: 16.59 | H139: M | I139: SAN GERMANO SPA | J139: 70 | K139: R13 - R3 | M139: CIPNES Gallura | N139: 16.59 | O139: CIPNES Gallura | P139: - | Q139: - | R139: - | S139: -
A140: CIPNES Gallura | B140: 2019 | C140: 90092 | D140: COMUNE DI SAN TEODORO | E140: 5 | F140: 200201 | G140: 23.495 | H140: M | I140: SAN GERMANO SPA | J140: 70 | K140: R13 - R3 | M140: CIPNES Gallura | N140: 23.495 | O140: CIPNES Gallura | P140: - | Q140: - | R140: - | S140: -
A141: CIPNES Gallura | B141: 2019 | C141: 90092 | D141: COMUNE DI SAN TEODORO | E141: 6 | F141: 200201 | G141: 16.885 | H141: M | I141: SAN GERMANO SPA | J141: 70 | K141: R13 - R3 | M141: CIPNES Gallura | N141: 16.885 | O141: CIPNES Gallura | P141: - | Q141: - | R141: - | S141: -
A142: CIPNES Gallura | B142: 2019 | C142: 90092 | D142: COMUNE DI SAN TEODORO | E142: 7 | F142: 200201 | G142: 37.515 | H142: M | I142: SAN GERMANO SPA | J142: 70 | K142: R13 - R3 | M142: CIPNES Gallura | N142: 37.515 | O142: CIPNES Gallura | P142: - | Q142: - | R142: - | S142: -
A143: CIPNES Gallura | B143: 2019 | C143: 90092 | D143: COMUNE DI SAN TEODORO | E143: 8 | F143: 200201 | G143: 26.04 | H143: M | I143: SAN GERMANO SPA | J143: 70 | K143: R13 - R3 | M143: CIPNES Gallura | N143: 26.04 | O143: CIPNES Gallura | P143: - | Q143: - | R143: - | S143: -
A144: CIPNES Gallura | B144: 2019 | C144: 90092 | D144: COMUNE DI SAN TEODORO | E144: 9 | F144: 200201 | G144: 23.605 | H144: M | I144: SAN GERMANO SPA | J144: 70 | K144: R13 - R3 | M144: CIPNES Gallura | N144: 23.605 | O144: CIPNES Gallura | P144: - | Q144: - | R144: - | S144: -
A145: CIPNES Gallura | B145: 2019 | C145: 90092 | D145: COMUNE DI SAN TEODORO | E145: 10 | F145: 200201 | G145: 13.445 | H145: M | I145: SAN GERMANO SPA | J145: 70 | K145: R13 - R3 | M145: CIPNES Gallura | N145: 13.445 | O145: CIPNES Gallura | P145: - | Q145: - | R145: - | S145: -
A146: CIPNES Gallura | B146: 2019 | C146: 90092 | D146: COMUNE DI SAN TEODORO | E146: 11 | F146: 200201 | G146: 5.065 | H146: M | I146: SAN GERMANO SPA | J146: 70 | K146: R13 - R3 | M146: CIPNES Gallura | N146: 5.065 | O146: CIPNES Gallura | P146: - | Q146: - | R146: - | S146: -
A147: CIPNES Gallura | B147: 2019 | C147: 90092 | D147: COMUNE DI SAN TEODORO | E147: 12 | F147: 200201 | G147: 5.165 | H147: M | I147: SAN GERMANO SPA | J147: 70 | K147: R13 - R3 | M147: CIPNES Gallura | N147: 5.165 | O147: CIPNES Gallura | P147: - | Q147: - | R147: - | S147: -
A148: CIPNES Gallura | B148: 2019 | C148: 90080 | D148: COMUNE DI TELTI | E148: 4 | F148: 200201 | G148: =475/1000 -> 0.475 | H148: M | I148: TERTIUM | J148: 70 | K148: R13 - R3 | M148: CIPNES Gallura | N148: =475/1000 -> 0.475 | O148: CIPNES Gallura | P148: - | Q148: - | R148: - | S148: -
A149: CIPNES Gallura | B149: 2019 | C149: 90080 | D149: COMUNE DI TELTI | E149: 8 | F149: 200201 | G149: 1.47 | H149: M | I149: TERTIUM | J149: 70 | K149: R13 - R3 | M149: CIPNES Gallura | N149: 1.47 | O149: CIPNES Gallura | P149: - | Q149: - | R149: - | S149: -
A150: CIPNES Gallura | B150: 2019 | C150: 90074 | D150: COMUNE DI TRINITA' D'AGULTU E VIGNOLA | E150: 6 | F150: 200201 | G150: 39.5 | H150: M | I150: AMBIENTE ITALIA SRL | J150: 70 | K150: R13 - R3 | M150: CIPNES Gallura | N150: 39.5 | O150: CIPNES Gallura | P150: - | Q150: - | R150: - | S150: -
A151: CIPNES Gallura | B151: 2019 | C151: 90074 | D151: COMUNE DI TRINITA' D'AGULTU E VIGNOLA | E151: 7 | F151: 200201 | G151: 14.2 | H151: M | I151: AMBIENTE ITALIA SRL | J151: 70 | K151: R13 - R3 | M151: CIPNES Gallura | N151: 14.2 | O151: CIPNES Gallura | P151: - | Q151: - | R151: - | S151: -
A152: CIPNES Gallura | B152: 2019 | C152: 90074 | D152: COMUNE DI TRINITA' D'AGULTU E VIGNOLA | E152: 8 | F152: 200201 | G152: 20.13 | H152: M | I152: AMBIENTE ITALIA SRL | J152: 70 | K152: R13 - R3 | M152: CIPNES Gallura | N152: 20.13 | O152: CIPNES Gallura | P152: - | Q152: - | R152: - | S152: -
A153: CIPNES Gallura | B153: 2019 | C153: 90074 | D153: COMUNE DI TRINITA' D'AGULTU E VIGNOLA | E153: 9 | F153: 200201 | G153: 12.665 | H153: M | I153: AMBIENTE ITALIA SRL | J153: 70 | K153: R13 - R3 | M153: CIPNES Gallura | N153: 12.665 | O153: CIPNES Gallura | P153: - | Q153: - | R153: - | S153: -
A154: CIPNES Gallura | B154: 2019 | C154: 90074 | D154: COMUNE DI TRINITA' D'AGULTU E VIGNOLA | E154: 10 | F154: 200201 | G154: 10.485 | H154: M | I154: AMBIENTE ITALIA SRL | J154: 70 | K154: R13 - R3 | M154: CIPNES Gallura | N154: 10.485 | O154: CIPNES Gallura | P154: - | Q154: - | R154: - | S154: -
A155: CIPNES Gallura | B155: 2019 | C155: 90074 | D155: COMUNE DI TRINITA' D'AGULTU E VIGNOLA | E155: 11 | F155: 200201 | G155: 4.615 | H155: M | I155: AMBIENTE ITALIA SRL | J155: 70 | K155: R13 - R3 | M155: CIPNES Gallura | N155: 4.615 | O155: CIPNES Gallura | P155: - | Q155: - | R155: - | S155: -
A156: CIPNES Gallura | B156: 2019 | C156: 90074 | D156: COMUNE DI TRINITA' D'AGULTU E VIGNOLA | E156: 12 | F156: 200201 | G156: 8.485 | H156: M | I156: AMBIENTE ITALIA SRL | J156: 70 | K156: R13 - R3 | M156: CIPNES Gallura | N156: 8.485 | O156: CIPNES Gallura | P156: - | Q156: - | R156: - | S156: -
A157: CIPNES Gallura | B157: 2019 | D157: CONSORZIO DI POLTU QUATU | E157: 4 | F157: 200201 | G157: 3.12 | H157: M | I157: MEDITERRANEA AMBIENTE SRL | J157: 70 | K157: R13 - R3 | M157: CIPNES Gallura | N157: 3.12 | O157: CIPNES Gallura | P157: - | Q157: - | R157: - | S157: -
A158: CIPNES Gallura | B158: 2019 | D158: CONSORZIO DI POLTU QUATU | E158: 5 | F158: 200201 | G158: 2.22 | H158: M | I158: MEDITERRANEA AMBIENTE SRL | J158: 70 | K158: R13 - R3 | M158: CIPNES Gallura | N158: 2.22 | O158: CIPNES Gallura | P158: - | Q158: - | R158: - | S158: -
A159: CIPNES Gallura | B159: 2019 | D159: CONSORZIO DI PORTO ROTONDO | E159: 1 | F159: 200201 | G159: 21.595 | H159: M | I159: C.I.P.N.E.S. GALLURA | J159: * | K159: R13 - R3 | M159: CIPNES Gallura | N159: 21.595 | O159: CIPNES Gallura | P159: - | Q159: - | R159: - | S159: -
A160: CIPNES Gallura | B160: 2019 | D160: CONSORZIO DI PORTO ROTONDO | E160: 2 | F160: 200201 | G160: 21.465 | H160: M | I160: C.I.P.N.E.S. GALLURA | J160: * | K160: R13 - R3 | M160: CIPNES Gallura | N160: 21.465 | O160: CIPNES Gallura | P160: - | Q160: - | R160: - | S160: -
A161: CIPNES Gallura | B161: 2019 | D161: CONSORZIO DI PORTO ROTONDO | E161: 3 | F161: 200201 | G161: 22.58 | H161: M | I161: C.I.P.N.E.S. GALLURA | J161: * | K161: R13 - R3 | M161: CIPNES Gallura | N161: 22.58 | O161: CIPNES Gallura | P161: - | Q161: - | R161: - | S161: -
A162: CIPNES Gallura | B162: 2019 | D162: CONSORZIO DI PORTO ROTONDO | E162: 4 | F162: 200201 | G162: 17.795 | H162: M | I162: C.I.P.N.E.S. GALLURA | J162: * | K162: R13 - R3 | M162: CIPNES Gallura | N162: 17.795 | O162: CIPNES Gallura | P162: - | Q162: - | R162: - | S162: -
A163: CIPNES Gallura | B163: 2019 | D163: CONSORZIO DI PORTO ROTONDO | E163: 5 | F163: 200201 | G163: 21.165 | H163: M | I163: C.I.P.N.E.S. GALLURA | J163: * | K163: R13 - R3 | M163: CIPNES Gallura | N163: 21.165 | O163: CIPNES Gallura | P163: - | Q163: - | R163: - | S163: -
A164: CIPNES Gallura | B164: 2019 | D164: CONSORZIO DI PORTO ROTONDO | E164: 6 | F164: 200201 | G164: 78.11 | H164: M | I164: C.I.P.N.E.S. GALLURA | J164: * | K164: R13 - R3 | M164: CIPNES Gallura | N164: 78.11 | O164: CIPNES Gallura | P164: - | Q164: - | R164: - | S164: -
A165: CIPNES Gallura | B165: 2019 | D165: CONSORZIO DI PORTO ROTONDO | E165: 7 | F165: 200201 | G165: 20.36 | H165: M | I165: C.I.P.N.E.S. GALLURA | J165: * | K165: R13 - R3 | M165: CIPNES Gallura | N165: 20.36 | O165: CIPNES Gallura | P165: - | Q165: - | R165: - | S165: -
A166: CIPNES Gallura | B166: 2019 | D166: CONSORZIO DI PORTO ROTONDO | E166: 8 | F166: 200201 | G166: 19.025 | H166: M | I166: C.I.P.N.E.S. GALLURA | J166: * | K166: R13 - R3 | M166: CIPNES Gallura | N166: 19.025 | O166: CIPNES Gallura | P166: - | Q166: - | R166: - | S166: -
A167: CIPNES Gallura | B167: 2019 | D167: CONSORZIO DI PORTO ROTONDO | E167: 9 | F167: 200201 | G167: 15.205 | H167: M | I167: C.I.P.N.E.S. GALLURA | J167: * | K167: R13 - R3 | M167: CIPNES Gallura | N167: 15.205 | O167: CIPNES Gallura | P167: - | Q167: - | R167: - | S167: -
A168: CIPNES Gallura | B168: 2019 | D168: CONSORZIO DI PORTO ROTONDO | E168: 10 | F168: 200201 | G168: 21.205 | H168: M | I168: C.I.P.N.E.S. GALLURA | J168: * | K168: R13 - R3 | M168: CIPNES Gallura | N168: 21.205 | O168: CIPNES Gallura | P168: - | Q168: - | R168: - | S168: -
A169: CIPNES Gallura | B169: 2019 | D169: CONSORZIO DI PORTO ROTONDO | E169: 11 | F169: 200201 | G169: 44.235 | H169: M | I169: C.I.P.N.E.S. GALLURA | J169: * | K169: R13 - R3 | M169: CIPNES Gallura | N169: 44.235 | O169: CIPNES Gallura | P169: - | Q169: - | R169: - | S169: -
A170: CIPNES Gallura | B170: 2019 | D170: CONSORZIO DI PORTO ROTONDO | E170: 12 | F170: 200201 | G170: 21.255 | H170: M | I170: C.I.P.N.E.S. GALLURA | J170: * | K170: R13 - R3 | M170: CIPNES Gallura | N170: 21.255 | O170: CIPNES Gallura | P170: - | Q170: - | R170: - | S170: -
A171: CIPNES Gallura | B171: 2019 | D171: CONSORZIO PUNTALDIA | E171: 1 | F171: 200201 | G171: 28.6 | H171: M | I171: C.I.P.N.E.S. GALLURA | J171: * | K171: R13 - R3 | M171: CIPNES Gallura | N171: 28.6 | O171: CIPNES Gallura | P171: - | Q171: - | R171: - | S171: -
A172: CIPNES Gallura | B172: 2019 | D172: CONSORZIO FORMULA AMBIENTE | E172: 6 | F172: 200201 | G172: 46.185 | H172: M | I172: CONSORZIO FORMULA AMBIENTE | J172: 60 | K172: R13 - R3 | M172: CIPNES Gallura | N172: 46.185 | O172: CIPNES Gallura | P172: - | Q172: - | R172: - | S172: -
A173: CIPNES Gallura | B173: 2019 | D173: CONSORZIO FORMULA AMBIENTE | E173: 7 | F173: 200201 | G173: 34.125 | H173: M | I173: CONSORZIO FORMULA AMBIENTE | J173: 60 | K173: R13 - R3 | M173: CIPNES Gallura | N173: 34.125 | O173: CIPNES Gallura | P173: - | Q173: - | R173: - | S173: -
A174: CIPNES Gallura | B174: 2019 | D174: CONSORZIO FORMULA AMBIENTE | E174: 8 | F174: 200201 | G174: 34.79 | H174: M | I174: CONSORZIO FORMULA AMBIENTE | J174: 60 | K174: R13 - R3 | M174: CIPNES Gallura | N174: 34.79 | O174: CIPNES Gallura | P174: - | Q174: - | R174: - | S174: -
A175: CIPNES Gallura | B175: 2019 | D175: CONSORZIO FORMULA AMBIENTE | E175: 9 | F175: 200201 | G175: 29.52 | H175: M | I175: CONSORZIO FORMULA AMBIENTE | J175: 60 | K175: R13 - R3 | M175: CIPNES Gallura | N175: 29.52 | O175: CIPNES Gallura | P175: - | Q175: - | R175: - | S175: -
A176: CIPNES Gallura | B176: 2019 | D176: CONSORZIO FORMULA AMBIENTE | E176: 10 | F176: 200201 | G176: 11.835 | H176: M | I176: CONSORZIO FORMULA AMBIENTE | J176: 55 | K176: R13 - R3 | M176: CIPNES Gallura | N176: 11.835 | O176: CIPNES Gallura | P176: - | Q176: - | R176: - | S176: -
A177: CIPNES Gallura | B177: 2019 | D177: CONSORZIO FORMULA AMBIENTE | E177: 11 | F177: 200201 | G177: 5.71 | H177: M | I177: CONSORZIO FORMULA AMBIENTE | J177: 55 | K177: R13 - R3 | M177: CIPNES Gallura | N177: 5.71 | O177: CIPNES Gallura | P177: - | Q177: - | R177: - | S177: -
A178: CIPNES Gallura | B178: 2019 | D178: CONSORZIO FORMULA AMBIENTE | E178: 12 | F178: 200201 | G178: 7.75 | H178: M | I178: CONSORZIO FORMULA AMBIENTE | J178: 55 | K178: R13 - R3 | M178: CIPNES Gallura | N178: 7.75 | O178: CIPNES Gallura | P178: - | Q178: - | R178: - | S178: -
A179: CIPNES Gallura | B179: 2019 | D179: CONSORZIO FORMULA AMBIENTE | E179: 2 | F179: 200201 | G179: 22.83 | H179: M | I179: CONSORZIO FORMULA AMBIENTE | J179: 70 | K179: R13 - R3 | M179: CIPNES Gallura | N179: 22.83 | O179: CIPNES Gallura | P179: - | Q179: - | R179: - | S179: -
A180: CIPNES Gallura | B180: 2019 | D180: CONSORZIO FORMULA AMBIENTE | E180: 3 | F180: 200201 | G180: 18.125 | H180: M | I180: CONSORZIO FORMULA AMBIENTE | J180: 70 | K180: R13 - R3 | M180: CIPNES Gallura | N180: 18.125 | O180: CIPNES Gallura | P180: - | Q180: - | R180: - | S180: -
A181: CIPNES Gallura | B181: 2019 | D181: CONSORZIO FORMULA AMBIENTE | E181: 4 | F181: 200201 | G181: 43.565 | H181: M | I181: CONSORZIO FORMULA AMBIENTE | J181: 70 | K181: R13 - R3 | M181: CIPNES Gallura | N181: 43.565 | O181: CIPNES Gallura | P181: - | Q181: - | R181: - | S181: -
A182: CIPNES Gallura | B182: 2019 | D182: CONSORZIO FORMULA AMBIENTE | E182: 5 | F182: 200201 | G182: 43.535 | H182: M | I182: CONSORZIO FORMULA AMBIENTE | J182: 60 | K182: R13 - R3 | M182: CIPNES Gallura | N182: 43.535 | O182: CIPNES Gallura | P182: - | Q182: - | R182: - | S182: -
A183: CIPNES Gallura | B183: 2019 | D183: CONSORZIO FORMULA AMBIENTE | E183: 1 | F183: 200201 | G183: 7.075 | H183: M | I183: CONSORZIO FORMULA AMBIENTE | J183: 55 | K183: R13 - R3 | M183: CIPNES Gallura | N183: 7.075 | O183: CIPNES Gallura | P183: - | Q183: - | R183: - | S183: -
A184: CIPNES Gallura | B184: 2019 | D184: CONSORZIO LIDO DEL SOLE | E184: 10 | F184: 200201 | G184: 12.79 | H184: M | I184: C.I.P.N.E.S. GALLURA | J184: * | K184: R13 - R3 | M184: CIPNES Gallura | N184: 12.79 | O184: CIPNES Gallura | P184: - | Q184: - | R184: - | S184: -
A185: CIPNES Gallura | B185: 2019 | D185: CONSORZIO LIDO DEL SOLE | E185: 11 | F185: 200201 | G185: 2.81 | H185: M | I185: C.I.P.N.E.S. GALLURA | J185: * | K185: R13 - R3 | M185: CIPNES Gallura | N185: 2.81 | O185: CIPNES Gallura | P185: - | Q185: - | R185: - | S185: -
A186: CIPNES Gallura | B186: 2019 | D186: CONSORZIO SARDINIA BUDONI | E186: 9 | F186: 200201 | G186: 11.06 | H186: M | I186: C.I.P.N.E.S. GALLURA | J186: 70 | K186: R13 - R3 | M186: CIPNES Gallura | N186: 11.06 | O186: CIPNES Gallura | P186: - | Q186: - | R186: - | S186: -
A187: CIPNES Gallura | B187: 2019 | D187: LA MADDALENA AMBIENTE S.R.L. | E187: 1 | F187: 200201 | G187: 37.495 | H187: M | I187: C.I.P.N.E.S. GALLURA | J187: 70 | K187: R13 - R3 | M187: CIPNES Gallura | N187: 37.495 | O187: CIPNES Gallura | P187: - | Q187: - | R187: - | S187: -
A188: CIPNES Gallura | B188: 2019 | D188: LA MADDALENA AMBIENTE S.R.L. | E188: 2 | F188: 200201 | G188: 48.83 | H188: M | I188: C.I.P.N.E.S. GALLURA | J188: 70 | K188: R13 - R3 | M188: CIPNES Gallura | N188: 48.83 | O188: CIPNES Gallura | P188: - | Q188: - | R188: - | S188: -
A189: CIPNES Gallura | B189: 2019 | D189: LA MADDALENA AMBIENTE S.R.L. | E189: 2 | F189: 200201 | G189: 5.92 | H189: M | I189: CAPPAI TRASPORTI S.N.C. | J189: 70 | K189: R13 - R3 | M189: CIPNES Gallura | N189: 5.92 | O189: CIPNES Gallura | P189: - | Q189: - | R189: - | S189: -
A190: CIPNES Gallura | B190: 2019 | D190: LA MADDALENA AMBIENTE S.R.L. | E190: 3 | F190: 200201 | G190: 16.755 | H190: M | I190: CAPPAI TRASPORTI S.N.C. | J190: 70 | K190: R13 - R3 | M190: CIPNES Gallura | N190: 16.755 | O190: CIPNES Gallura | P190: - | Q190: - | R190: - | S190: -
A191: CIPNES Gallura | B191: 2019 | D191: LA MADDALENA AMBIENTE S.R.L. | E191: 3 | F191: 200201 | G191: 53.33 | H191: M | I191: C.I.P.N.E.S. GALLURA | J191: 70 | K191: R13 - R3 | M191: CIPNES Gallura | N191: 53.33 | O191: CIPNES Gallura | P191: - | Q191: - | R191: - | S191: -
A192: CIPNES Gallura | B192: 2019 | D192: LA MADDALENA AMBIENTE S.R.L. | E192: 4 | F192: 200201 | G192: 36.675 | H192: M | I192: C.I.P.N.E.S. GALLURA | J192: 70 | K192: R13 - R3 | M192: CIPNES Gallura | N192: 36.675 | O192: CIPNES Gallura | P192: - | Q192: - | R192: - | S192: -
A193: CIPNES Gallura | B193: 2019 | D193: LA MADDALENA AMBIENTE S.R.L. | E193: 5 | F193: 200201 | G193: 33.85 | H193: M | I193: CAPPAI TRASPORTI S.N.C. | J193: 70 | K193: R13 - R3 | M193: CIPNES Gallura | N193: 33.85 | O193: CIPNES Gallura | P193: - | Q193: - | R193: - | S193: -
A194: CIPNES Gallura | B194: 2019 | D194: LA MADDALENA AMBIENTE S.R.L. | E194: 6 | F194: 200201 | G194: 33.34 | H194: M | I194: CAPPAI TRASPORTI S.N.C. | J194: 70 | K194: R13 - R3 | M194: CIPNES Gallura | N194: 33.34 | O194: CIPNES Gallura | P194: - | Q194: - | R194: - | S194: -
A195: CIPNES Gallura | B195: 2019 | D195: LA MADDALENA AMBIENTE S.R.L. | E195: 7 | F195: 200201 | G195: 18 | H195: M | I195: C.I.P.N.E.S. GALLURA | J195: 70 | K195: R13 - R3 | M195: CIPNES Gallura | N195: 18 | O195: CIPNES Gallura | P195: - | Q195: - | R195: - | S195: -
A196: CIPNES Gallura | B196: 2019 | D196: LA MADDALENA AMBIENTE S.R.L. | E196: 8 | F196: 200201 | G196: 22.64 | H196: M | I196: CAPPAI TRASPORTI S.N.C. | J196: 70 | K196: R13 - R3 | M196: CIPNES Gallura | N196: 22.64 | O196: CIPNES Gallura | P196: - | Q196: - | R196: - | S196: -
A197: CIPNES Gallura | B197: 2019 | D197: LA MADDALENA AMBIENTE S.R.L. | E197: 9 | F197: 200201 | G197: 42.43 | H197: M | I197: C.I.P.N.E.S. GALLURA | J197: 70 | K197: R13 - R3 | M197: CIPNES Gallura | N197: 42.43 | O197: CIPNES Gallura | P197: - | Q197: - | R197: - | S197: -
A198: CIPNES Gallura | B198: 2019 | D198: LA MADDALENA AMBIENTE S.R.L. | E198: 10 | F198: 200201 | G198: 56.57 | H198: M | I198: CAPPAI TRASPORTI S.N.C. | J198: 70 | K198: R13 - R3 | M198: CIPNES Gallura | N198: 56.57 | O198: CIPNES Gallura | P198: - | Q198: - | R198: - | S198: -
A199: CIPNES Gallura | B199: 2019 | D199: LA MADDALENA AMBIENTE S.R.L. | E199: 11 | F199: 200201 | G199: 74.645 | H199: M | I199: CAPPAI TRASPORTI S.N.C. | J199: 70 | K199: R13 - R3 | M199: CIPNES Gallura | N199: 74.645 | O199: CIPNES Gallura | P199: - | Q199: - | R199: - | S199: -
A200: CIPNES Gallura | B200: 2019 | D200: LA MADDALENA AMBIENTE S.R.L. | E200: 12 | F200: 200201 | G200: 37.585 | H200: M | I200: CAPPAI TRASPORTI S.N.C. | J200: 70 | K200: R13 - R3 | M200: CIPNES Gallura | N200: 37.585 | O200: CIPNES Gallura | P200: - | Q200: - | R200: - | S200: -
A201: CIPNES Gallura | B201: 2019 | D201: LA MADDALENA AMBIENTE S.R.L. | E201: 4 | F201: 200201 | G201: 12.38 | H201: M | I201: CAPPAI TRASPORTI S.N.C. | J201: 70 | K201: R13 - R3 | M201: CIPNES Gallura | N201: 12.38 | O201: CIPNES Gallura | P201: - | Q201: - | R201: - | S201: -
A202: CIPNES Gallura | B202: 2019 | D202: CIPNES GALLURA | E202: 4 | F202: 200201 | G202: 15.125 | H202: M | I202: C.I.P.N.E.S. GALLURA | J202: 70 | K202: R13 - R3 | M202: CIPNES Gallura | N202: 15.125 | O202: CIPNES Gallura | P202: - | Q202: - | R202: - | S202: -
... 19 more rows

Sheet B-rifiuti privati
A1: AGENZIA REGIONALE PER LA PROTEZIONE DELL’AMBIENTE DELLA SARDEGNA - ARPAS e OSSERVATORI PROVINCIALI RIFIUTI
A3: PROSPETTO B - 2019
A5: Nome Impianto | B5: Anno Riferimento | C5: Nome Conferitore | D5: Mese | E5: Rifiuto (CER) | F5: Quantità in Tonnellate | G5: Frequenza (A=annuale: M=mensile) | H5: Ditta Trasporto | I5: Tariffa Conferimento (ESENTE IVA) | J5: Operazione di smaltimento o recupero | K5: Note | L5: Impianti Destinazione materiali a recupero | M5: Quantità materiali a recupero | N5: Impianti Destinazione scarti | O5: Quantità scarti allo smaltimento | P5: Convenzione Conai | Q5: Possesso delega (comune/ditta) | R5: Consorzio di fliera convenzionato
A6: CIPNES Gallura | B6: 2019 | C6: A. M. MANUTENZIONI DI MAXIA ANGELO | D6: 2 | E6: 200201 | F6: =12220/1000 -> 12.22 | G6: M | H6: C.I.P.N.E.S. GALLURA | I6: * | J6: R 13 - R3 | L6: CIPNES Gallura | M6: =12220/1000 -> 12.22 | N6: CIPNES Gallura | O6: - | P6: - | Q6: - | R6: -
A7: CIPNES Gallura | B7: 2019 | C7: A. M. MANUTENZIONI DI MAXIA ANGELO | D7: 5 | E7: 200201 | F7: =6165/1000 -> 6.165 | G7: M | H7: C.I.P.N.E.S. GALLURA | I7: * | J7: R 13 - R3 | L7: CIPNES Gallura | M7: =6165/1000 -> 6.165 | N7: CIPNES Gallura | O7: - | P7: - | Q7: - | R7: -
A8: CIPNES Gallura | B8: 2019 | C8: A. M. MANUTENZIONI DI MAXIA ANGELO | D8: 6 | E8: 200201 | F8: =2665/1000 -> 2.665 | G8: M | H8: C.I.P.N.E.S. GALLURA | I8: * | J8: R 13 - R3 | L8: CIPNES Gallura | M8: =2665/1000 -> 2.665 | N8: CIPNES Gallura | O8: - | P8: - | Q8: - | R8: -
A9: CIPNES Gallura | B9: 2019 | C9: A. M. MANUTENZIONI DI MAXIA ANGELO | D9: 9 | E9: 200201 | F9: =10390/1000 -> 10.39 | G9: M | H9: C.I.P.N.E.S. GALLURA | I9: * | J9: R 13 - R3 | L9: CIPNES Gallura | M9: =10390/1000 -> 10.39 | N9: CIPNES Gallura | O9: - | P9: - | Q9: - | R9: -
A10: CIPNES Gallura | B10: 2019 | C10: A. M. MANUTENZIONI DI MAXIA ANGELO | D10: 10 | E10: 200201 | F10: =5700/1000 -> 5.7 | G10: M | H10: C.I.P.N.E.S. GALLURA | I10: * | J10: R 13 - R3 | L10: CIPNES Gallura | M10: =5700/1000 -> 5.7 | N10: CIPNES Gallura | O10: - | P10: - | Q10: - | R10: -
A11: CIPNES Gallura | B11: 2019 | C11: A. M. MANUTENZIONI DI MAXIA ANGELO | D11: 12 | E11: 200201 | F11: 5.01 | G11: M | H11: C.I.P.N.E.S. GALLURA | I11: * | J11: R 13 - R3 | L11: CIPNES Gallura | M11: 5.01 | N11: CIPNES Gallura | O11: - | P11: - | Q11: - | R11: -
A12: CIPNES Gallura | B12: 2019 | C12: ALBERGHINA VERDE AMBIENTE | D12: 11 | E12: 200201 | F12: =2900/1000 -> 2.9 | G12: M | H12: C.I.P.N.E.S. GALLURA | I12: * | J12: R 13 - R3 | L12: CIPNES Gallura | M12: =2900/1000 -> 2.9 | N12: CIPNES Gallura | O12: - | P12: - | Q12: - | R12: -
A13: CIPNES Gallura | B13: 2019 | C13: ALBERTO MORGANTI | D13: 8 | E13: 200201 | F13: =1080/1000 -> 1.08 | G13: M | H13: C.I.P.N.E.S. GALLURA | I13: * | J13: R 13 - R3 | L13: CIPNES Gallura | M13: =1080/1000 -> 1.08 | N13: CIPNES Gallura | O13: - | P13: - | Q13: - | R13: -
A14: CIPNES Gallura | B14: 2019 | C14: ALL BUILDINGS SRL | D14: 6 | E14: 200201 | F14: =200/1000 -> 0.2 | G14: M | H14: ECO OLBIA SRL | I14: 70 | J14: R 13 - R3 | L14: CIPNES Gallura | M14: =200/1000 -> 0.2 | N14: CIPNES Gallura | O14: - | P14: - | Q14: - | R14: -
A15: CIPNES Gallura | B15: 2019 | C15: ANDROMEDA SRL | D15: 2 | E15: 200201 | F15: =1990/1000 -> 1.99 | G15: M | H15: C.I.P.N.E.S. GALLURA | I15: * | J15: R 13 - R3 | L15: CIPNES Gallura | M15: =1990/1000 -> 1.99 | N15: CIPNES Gallura | O15: - | P15: - | Q15: - | R15: -
A16: CIPNES Gallura | B16: 2019 | C16: APULIA SRL | D16: 2 | E16: 200201 | F16: =5665/1000 -> 5.665 | G16: M | H16: C.I.P.N.E.S. GALLURA | I16: * | J16: R 13 - R3 | L16: CIPNES Gallura | M16: =5665/1000 -> 5.665 | N16: CIPNES Gallura | O16: - | P16: - | Q16: - | R16: -
A17: CIPNES Gallura | B17: 2019 | C17: ARCOS VACANZE S.R.L.S | D17: 4 | E17: 200201 | F17: =2875/1000 -> 2.875 | G17: M | H17: C.I.P.N.E.S. GALLURA | I17: * | J17: R 13 - R3 | L17: CIPNES Gallura | M17: =2875/1000 -> 2.875 | N17: CIPNES Gallura | O17: - | P17: - | Q17: - | R17: -
A18: CIPNES Gallura | B18: 2019 | C18: AREE VERDI DI MARCO FOIS | D18: 4 | E18: 200201 | F18: =3380/1000 -> 3.38 | G18: M | H18: AREE VERDI DI MARCO FOIS | I18: * | J18: R 13 - R3 | L18: CIPNES Gallura | M18: =3380/1000 -> 3.38 | N18: CIPNES Gallura | O18: - | P18: - | Q18: - | R18: -
A19: CIPNES Gallura | B19: 2019 | C19: AREE VERDI DI MARCO FOIS | D19: 5 | E19: 200201 | F19: =2425/1000 -> 2.425 | G19: M | H19: AREE VERDI DI MARCO FOIS | I19: * | J19: R 13 - R3 | L19: CIPNES Gallura | M19: =2425/1000 -> 2.425 | N19: CIPNES Gallura | O19: - | P19: - | Q19: - | R19: -
A20: CIPNES Gallura | B20: 2019 | C20: ARIEL SRL | D20: 4 | E20: 200201 | F20: =2660/1000 -> 2.66 | G20: M | H20: C.I.P.N.E.S. GALLURA | I20: * | J20: R 13 - R3 | L20: CIPNES Gallura | M20: =2660/1000 -> 2.66 | N20: CIPNES Gallura | O20: - | P20: - | Q20: - | R20: -
A21: CIPNES Gallura | B21: 2019 | C21: ARIEL SRL | D21: 5 | E21: 200201 | F21: =3200/1000 -> 3.2 | G21: M | H21: C.I.P.N.E.S. GALLURA | I21: * | J21: R 13 - R3 | L21: CIPNES Gallura | M21: =3200/1000 -> 3.2 | N21: CIPNES Gallura | O21: - | P21: - | Q21: - | R21: -
A22: CIPNES Gallura | B22: 2019 | C22: ARIEL SRL | D22: 6 | E22: 200201 | F22: =2875/1000 -> 2.875 | G22: M | H22: C.I.P.N.E.S. GALLURA | I22: * | J22: R 13 - R3 | L22: CIPNES Gallura | M22: =2875/1000 -> 2.875 | N22: CIPNES Gallura | O22: - | P22: - | Q22: - | R22: -
A23: CIPNES Gallura | B23: 2019 | C23: ARIEL SRL | D23: 7 | E23: 200201 | F23: =2420/1000 -> 2.42 | G23: M | H23: C.I.P.N.E.S. GALLURA | I23: * | J23: R 13 - R3 | L23: CIPNES Gallura | M23: =2420/1000 -> 2.42 | N23: CIPNES Gallura | O23: - | P23: - | Q23: - | R23: -
A24: CIPNES Gallura | B24: 2019 | C24: ARIEL SRL | D24: 9 | E24: 200201 | F24: =1985/1000 -> 1.985 | G24: M | H24: C.I.P.N.E.S. GALLURA | I24: * | J24: R 13 - R3 | L24: CIPNES Gallura | M24: =1985/1000 -> 1.985 | N24: CIPNES Gallura | O24: - | P24: - | Q24: - | R24: -
A25: CIPNES Gallura | B25: 2019 | C25: ARIEL SRL | D25: 10 | E25: 200201 | F25: =1835/1000 -> 1.835 | G25: M | H25: C.I.P.N.E.S. GALLURA | I25: * | J25: R 13 - R3 | L25: CIPNES Gallura | M25: =1835/1000 -> 1.835 | N25: CIPNES Gallura | O25: - | P25: - | Q25: - | R25: -
A26: CIPNES Gallura | B26: 2019 | C26: ASARA ROSA MARIA | D26: 3 | E26: 200201 | F26: =1620/1000 -> 1.62 | G26: M | H26: C.I.P.N.E.S. GALLURA | I26: * | J26: R 13 - R3 | L26: CIPNES Gallura | M26: =1620/1000 -> 1.62 | N26: CIPNES Gallura | O26: - | P26: - | Q26: - | R26: -
A27: CIPNES Gallura | B27: 2019 | C27: AUTO PLUS | D27: 4 | E27: 200201 | F27: =3305/1000 -> 3.305 | G27: M | H27: C.I.P.N.E.S. GALLURA | I27: * | J27: R 13 - R3 | L27: CIPNES Gallura | M27: =3305/1000 -> 3.305 | N27: CIPNES Gallura | O27: - | P27: - | Q27: - | R27: -
A28: CIPNES Gallura | B28: 2019 | C28: AUTOTRASPORTI DEMONTIS | D28: 9 | E28: 200201 | F28: =15965/1000 -> 15.965 | G28: M | H28: AUTOTRASPORTI DEMONTIS S.R.L. | I28: 70 | J28: R 13 - R3 | L28: CIPNES Gallura | M28: =15965/1000 -> 15.965 | N28: CIPNES Gallura | O28: - | P28: - | Q28: - | R28: -
A29: CIPNES Gallura | B29: 2019 | C29: AUTOTRASPORTI DEMONTIS | D29: 10 | E29: 200201 | F29: =7735/1000 -> 7.735 | G29: M | H29: AUTOTRASPORTI DEMONTIS S.R.L. | I29: 70 | J29: R 13 - R3 | L29: CIPNES Gallura | M29: =7735/1000 -> 7.735 | N29: CIPNES Gallura | O29: - | P29: - | Q29: - | R29: -
A30: CIPNES Gallura | B30: 2019 | C30: AZIENDA AGRICOLA F.LLI SABA | D30: 8 | E30: 200201 | F30: =3245/1000 -> 3.245 | G30: M | H30: C.I.P.N.E.S. GALLURA | I30: * | J30: R 13 - R3 | L30: CIPNES Gallura | M30: =3245/1000 -> 3.245 | N30: CIPNES Gallura | O30: - | P30: - | Q30: - | R30: -
A31: CIPNES Gallura | B31: 2019 | C31: BAJA HOTEL SPA | D31: 5 | E31: 200201 | F31: =1600/1000 -> 1.6 | G31: M | H31: OLBIASPURGO SAS | I31: 60 | J31: R 13 - R3 | L31: CIPNES Gallura | M31: =1600/1000 -> 1.6 | N31: CIPNES Gallura | O31: - | P31: - | Q31: - | R31: -
A32: CIPNES Gallura | B32: 2019 | C32: BAJA HOTEL SPA | D32: 8 | E32: 200201 | F32: =1555/1000 -> 1.555 | G32: M | H32: OLBIASPURGO SAS | I32: 60 | J32: R 13 - R3 | L32: CIPNES Gallura | M32: =1555/1000 -> 1.555 | N32: CIPNES Gallura | O32: - | P32: - | Q32: - | R32: -
A33: CIPNES Gallura | B33: 2019 | C33: BAJA HOTEL SPA | D33: 10 | E33: 200201 | F33: =1450/1000 -> 1.45 | G33: M | H33: OLBIASPURGO SAS | I33: 60 | J33: R 13 - R3 | L33: CIPNES Gallura | M33: =1450/1000 -> 1.45 | N33: CIPNES Gallura | O33: - | P33: - | Q33: - | R33: -
A34: CIPNES Gallura | B34: 2019 | C34: BELVERDE SOC.COOP.ARL | D34: 3 | E34: 200201 | F34: 3 | G34: M | H34: C.I.P.N.E.S. GALLURA | I34: * | J34: R 13 - R3 | L34: CIPNES Gallura | M34: 3 | N34: CIPNES Gallura | O34: - | P34: - | Q34: - | R34: -
A35: CIPNES Gallura | B35: 2019 | C35: BIBITE LACONI SRL | D35: 8 | E35: 150103 | F35: =8490/1000 -> 8.49 | G35: M | H35: ECOSERVICE S.R.L | I35: 70 | J35: R 13 - R3 | L35: CIPNES Gallura | M35: =8490/1000 -> 8.49 | N35: CIPNES Gallura | O35: - | P35: - | Q35: - | R35: -
A36: CIPNES Gallura | B36: 2019 | C36: BELVERDE SOC.COOP.ARL | D36: 3 | E36: 200201 | F36: 3.32 | G36: M | H36: C.I.P.N.E.S. GALLURA | I36: 70 | J36: R 13 - R3 | L36: CIPNES Gallura | M36: 3.32 | N36: CIPNES Gallura | O36: - | P36: - | Q36: - | R36: -
A37: CIPNES Gallura | B37: 2019 | C37: BONELLI ROMANO | D37: 3 | E37: 200201 | F37: =680/1000 -> 0.68 | G37: M | H37: C.I.P.N.E.S. GALLURA | I37: * | J37: R 13 - R3 | L37: CIPNES Gallura | M37: =680/1000 -> 0.68 | N37: CIPNES Gallura | O37: - | P37: - | Q37: - | R37: -
A38: CIPNES Gallura | B38: 2019 | C38: BRICOSELF ITALIA SPA | D38: 8 | E38: 150103 | F38: =2430/1000 -> 2.43 | G38: M | H38: ECO OLBIA SRL | I38: 60 | J38: R 13 - R3 | L38: CIPNES Gallura | M38: =2430/1000 -> 2.43 | N38: CIPNES Gallura | O38: - | P38: - | Q38: - | R38: -
A39: CIPNES Gallura | B39: 2019 | C39: CALA CAVALLO SPA | D39: 5 | E39: 200201 | F39: =7540/1000 -> 7.54 | G39: M | H39: C.I.P.N.E.S. GALLURA | I39: * | J39: R 13 - R3 | L39: CIPNES Gallura | M39: =7540/1000 -> 7.54 | N39: CIPNES Gallura | O39: - | P39: - | Q39: - | R39: -
A40: CIPNES Gallura | B40: 2019 | C40: CALA CAVALLO SPA | D40: 6 | E40: 200201 | F40: =9555/1000 -> 9.555 | G40: M | H40: C.I.P.N.E.S. GALLURA | I40: * | J40: R 13 - R3 | L40: CIPNES Gallura | M40: =9555/1000 -> 9.555 | N40: CIPNES Gallura | O40: - | P40: - | Q40: - | R40: -
A41: CIPNES Gallura | B41: 2019 | C41: CALA CAVALLO SPA | D41: 7 | E41: 200201 | F41: 3 | G41: M | H41: C.I.P.N.E.S. GALLURA | I41: * | J41: R 13 - R3 | L41: CIPNES Gallura | M41: 3 | N41: CIPNES Gallura | O41: - | P41: - | Q41: - | R41: -
A42: CIPNES Gallura | B42: 2019 | C42: CALA CAVALLO SPA | D42: 8 | E42: 200201 | F42: =7815/1000 -> 7.815 | G42: M | H42: C.I.P.N.E.S. GALLURA | I42: * | J42: R 13 - R3 | L42: CIPNES Gallura | M42: =7815/1000 -> 7.815 | N42: CIPNES Gallura | O42: - | P42: - | Q42: - | R42: -
A43: CIPNES Gallura | B43: 2019 | C43: CALA CAVALLO SPA | D43: 9 | E43: 200201 | F43: =6460/1000 -> 6.46 | G43: M | H43: C.I.P.N.E.S. GALLURA | I43: * | J43: R 13 - R3 | L43: CIPNES Gallura | M43: =6460/1000 -> 6.46 | N43: CIPNES Gallura | O43: - | P43: - | Q43: - | R43: -
A44: CIPNES Gallura | B44: 2019 | C44: CALA SERENA SRL | D44: 1 | E44: 200201 | F44: =2570/1000 -> 2.57 | G44: M | H44: C.I.P.N.E.S. GALLURA | I44: * | J44: R 13 - R3 | L44: CIPNES Gallura | M44: =2570/1000 -> 2.57 | N44: CIPNES Gallura | O44: - | P44: - | Q44: - | R44: -
A45: CIPNES Gallura | B45: 2019 | C45: CALA SERENA SRL | D45: 3 | E45: 200201 | F45: =2575/1000 -> 2.575 | G45: M | H45: C.I.P.N.E.S. GALLURA | I45: * | J45: R 13 - R3 | L45: CIPNES Gallura | M45: =2575/1000 -> 2.575 | N45: CIPNES Gallura | O45: - | P45: - | Q45: - | R45: -
A46: CIPNES Gallura | B46: 2019 | C46: CALA SERENA SRL | D46: 5 | E46: 200201 | F46: =1465/1000 -> 1.465 | G46: M | H46: C.I.P.N.E.S. GALLURA | I46: * | J46: R 13 - R3 | L46: CIPNES Gallura | M46: =1465/1000 -> 1.465 | N46: CIPNES Gallura | O46: - | P46: - | Q46: - | R46: -
A47: CIPNES Gallura | B47: 2019 | C47: CALA CAVALLO SPA | D47: 7 | E47: 200201 | F47: 1.21 | G47: M | H47: C.I.P.N.E.S. GALLURA | I47: 70 | J47: R 13 - R3 | L47: CIPNES Gallura | M47: 1.21 | N47: CIPNES Gallura | O47: - | P47: - | Q47: - | R47: -
A48: CIPNES Gallura | B48: 2019 | C48: CALA SERENA SRL | D48: 7 | E48: 200201 | F48: =985/1000 -> 0.985 | G48: M | H48: C.I.P.N.E.S. GALLURA | I48: * | J48: R 13 - R3 | L48: CIPNES Gallura | M48: =985/1000 -> 0.985 | N48: CIPNES Gallura | O48: - | P48: - | Q48: - | R48: -
A49: CIPNES Gallura | B49: 2019 | C49: CALA SERENA SRL | D49: 10 | E49: 200201 | F49: =825/1000 -> 0.825 | G49: M | H49: C.I.P.N.E.S. GALLURA | I49: * | J49: R 13 - R3 | L49: CIPNES Gallura | M49: =825/1000 -> 0.825 | N49: CIPNES Gallura | O49: - | P49: - | Q49: - | R49: -
A50: CIPNES Gallura | B50: 2019 | C50: CARLO UNGARELLI | D50: 9 | E50: 200201 | F50: =2175/1000 -> 2.175 | G50: M | H50: C.I.P.N.E.S. GALLURA | I50: * | J50: R 13 - R3 | L50: CIPNES Gallura | M50: =2175/1000 -> 2.175 | N50: CIPNES Gallura | O50: - | P50: - | Q50: - | R50: -
A51: CIPNES Gallura | B51: 2019 | C51: CASULA GIUSEPPE | D51: 6 | E51: 200201 | F51: =440/1000 -> 0.44 | G51: M | H51: C.I.P.N.E.S. GALLURA | I51: * | J51: R 13 - R3 | L51: CIPNES Gallura | M51: =440/1000 -> 0.44 | N51: CIPNES Gallura | O51: - | P51: - | Q51: - | R51: -
A52: CIPNES Gallura | B52: 2019 | C52: CASULA ROBERTO | D52: 4 | E52: 200201 | F52: =3070/1000 -> 3.07 | G52: M | H52: C.I.P.N.E.S. GALLURA | I52: * | J52: R 13 - R3 | L52: CIPNES Gallura | M52: =3070/1000 -> 3.07 | N52: CIPNES Gallura | O52: - | P52: - | Q52: - | R52: -
A53: CIPNES Gallura | B53: 2019 | C53: CASULA ROBERTO | D53: 6 | E53: 200201 | F53: =10870/1000 -> 10.87 | G53: M | H53: C.I.P.N.E.S. GALLURA | I53: * | J53: R 13 - R3 | L53: CIPNES Gallura | M53: =10870/1000 -> 10.87 | N53: CIPNES Gallura | O53: - | P53: - | Q53: - | R53: -
A54: CIPNES Gallura | B54: 2019 | C54: A. M. MANUTENZIONI DI MAXIA ANGELO | D54: 12 | E54: 200201 | F54: 1.2 | G54: M | H54: C.I.P.N.E.S. GALLURA | I54: 70 | J54: R 13 - R3 | L54: CIPNES Gallura | M54: 1.2 | N54: CIPNES Gallura | O54: - | P54: - | Q54: - | R54: -
A55: CIPNES Gallura | B55: 2019 | C55: CASULA ROBERTO | D55: 12 | E55: 200201 | F55: =1350/1000 -> 1.35 | G55: M | H55: C.I.P.N.E.S. GALLURA | I55: * | J55: R 13 - R3 | L55: CIPNES Gallura | M55: =1350/1000 -> 1.35 | N55: CIPNES Gallura | O55: - | P55: - | Q55: - | R55: -
A56: CIPNES Gallura | B56: 2019 | C56: CETIS SRL | D56: 9 | E56: 200201 | F56: =4555/1000 -> 4.555 | G56: M | H56: C.I.P.N.E.S. GALLURA | I56: * | J56: R 13 - R3 | L56: CIPNES Gallura | M56: =4555/1000 -> 4.555 | N56: CIPNES Gallura | O56: - | P56: - | Q56: - | R56: -
A57: CIPNES Gallura | B57: 2019 | C57: CETIS SRL | D57: 10 | E57: 200201 | F57: =4755/1000 -> 4.755 | G57: M | H57: C.I.P.N.E.S. GALLURA | I57: * | J57: R 13 - R3 | L57: CIPNES Gallura | M57: =4755/1000 -> 4.755 | N57: CIPNES Gallura | O57: - | P57: - | Q57: - | R57: -
A58: CIPNES Gallura | B58: 2019 | C58: CHITA IMMOBILIARE SRL | D58: 4 | E58: 200201 | F58: =1495/1000 -> 1.495 | G58: M | H58: ECO OLBIA SRL | I58: 60 | J58: R 13 - R3 | L58: CIPNES Gallura | M58: =1495/1000 -> 1.495 | N58: CIPNES Gallura | O58: - | P58: - | Q58: - | R58: -
A59: CIPNES Gallura | B59: 2019 | C59: CLAUDIA PIERALLINI | D59: 10 | E59: 200201 | F59: =3660/1000 -> 3.66 | G59: M | H59: C.I.P.N.E.S. GALLURA | I59: * | J59: R 13 - R3 | L59: CIPNES Gallura | M59: =3660/1000 -> 3.66 | N59: CIPNES Gallura | O59: - | P59: - | Q59: - | R59: -
A60: CIPNES Gallura | B60: 2019 | C60: CONDOMINIO BAJA TURCHESE | D60: 6 | E60: 200201 | F60: =7770/1000 -> 7.77 | G60: M | H60: C.I.P.N.E.S. GALLURA | I60: * | J60: R 13 - R3 | L60: CIPNES Gallura | M60: =7770/1000 -> 7.77 | N60: CIPNES Gallura | O60: - | P60: - | Q60: - | R60: -
A61: CIPNES Gallura | B61: 2019 | C61: CONDOMINIO BAJA TURCHESE | D61: 8 | E61: 200201 | F61: =4285/1000 -> 4.285 | G61: M | H61: C.I.P.N.E.S. GALLURA | I61: * | J61: R 13 - R3 | L61: CIPNES Gallura | M61: =4285/1000 -> 4.285 | N61: CIPNES Gallura | O61: - | P61: - | Q61: - | R61: -
A62: CIPNES Gallura | B62: 2019 | C62: CONDOMINIO CALA DELFINO | D62: 1 | E62: 200201 | F62: =2780/1000 -> 2.78 | G62: M | H62: ECO OLBIA SRL | I62: 60 | J62: R 13 - R3 | L62: CIPNES Gallura | M62: =2780/1000 -> 2.78 | N62: CIPNES Gallura | O62: - | P62: - | Q62: - | R62: -
A63: CIPNES Gallura | B63: 2019 | C63: CONDOMINIO CALA DELFINO | D63: 2 | E63: 200201 | F63: =1165/1000 -> 1.165 | G63: M | H63: ECO OLBIA SRL | I63: 70 | J63: R 13 - R3 | L63: CIPNES Gallura | M63: =1165/1000 -> 1.165 | N63: CIPNES Gallura | O63: - | P63: - | Q63: - | R63: -
A64: CIPNES Gallura | B64: 2019 | C64: CONDOMINIO CALA DELFINO | D64: 6 | E64: 200201 | F64: =1795/1000 -> 1.795 | G64: M | H64: ECO OLBIA SRL | I64: 60 | J64: R 13 - R3 | L64: CIPNES Gallura | M64: =1795/1000 -> 1.795 | N64: CIPNES Gallura | O64: - | P64: - | Q64: - | R64: -
A65: CIPNES Gallura | B65: 2019 | C65: CONDOMINIO CALA DELFINO | D65: 10 | E65: 200201 | F65: =3180/1000 -> 3.18 | G65: M | H65: ECO OLBIA SRL | I65: 60 | J65: R 13 - R3 | L65: CIPNES Gallura | M65: =3180/1000 -> 3.18 | N65: CIPNES Gallura | O65: - | P65: - | Q65: - | R65: -
A66: CIPNES Gallura | B66: 2019 | C66: CONDOMINIO CHRYSALIS BAY | D66: 5 | E66: 170201 | F66: =2595/1000 -> 2.595 | G66: M | H66: ECO OLBIA SRL | I66: 70 | J66: R 13 - R3 | L66: CIPNES Gallura | M66: =2595/1000 -> 2.595 | N66: CIPNES Gallura | O66: - | P66: - | Q66: - | R66: -
A67: CIPNES Gallura | B67: 2019 | C67: CONDOMINIO COLLE MAIORCA | D67: 3 | E67: 200201 | F67: =1570/1000 -> 1.57 | G67: M | H67: C.I.P.N.E.S. GALLURA | I67: * | J67: R 13 - R3 | L67: CIPNES Gallura | M67: =1570/1000 -> 1.57 | N67: CIPNES Gallura | O67: - | P67: - | Q67: - | R67: -
A68: CIPNES Gallura | B68: 2019 | C68: CONDOMINIO COLLE MAIORCA | D68: 10 | E68: 200201 | F68: =1560/1000 -> 1.56 | G68: M | H68: C.I.P.N.E.S. GALLURA | I68: * | J68: R 13 - R3 | L68: CIPNES Gallura | M68: =1560/1000 -> 1.56 | N68: CIPNES Gallura | O68: - | P68: - | Q68: - | R68: -
A69: CIPNES Gallura | B69: 2019 | C69: CONDOMINIO COPARTO 1 | D69: 3 | E69: 200201 | F69: 3 | G69: M | H69: C.I.P.N.E.S. GALLURA | I69: * | J69: R 13 - R3 | L69: CIPNES Gallura | M69: 3 | N69: CIPNES Gallura | O69: - | P69: - | Q69: - | R69: -
A70: CIPNES Gallura | B70: 2019 | C70: CONDOMINIO COPARTO 1 | D70: 6 | E70: 200201 | F70: =1720/1000 -> 1.72 | G70: M | H70: C.I.P.N.E.S. GALLURA | I70: * | J70: R 13 - R3 | L70: CIPNES Gallura | M70: =1720/1000 -> 1.72 | N70: CIPNES Gallura | O70: - | P70: - | Q70: - | R70: -
A71: CIPNES Gallura | B71: 2019 | C71: CONDOMINIO COPARTO 1 | D71: 3 | E71: 200201 | F71: 1.54 | G71: M | H71: C.I.P.N.E.S. GALLURA | I71: 70 | J71: R 13 - R3 | L71: CIPNES Gallura | M71: 1.54 | N71: CIPNES Gallura | O71: - | P71: - | Q71: - | R71: -
A72: CIPNES Gallura | B72: 2019 | C72: CONDOMINIO CORDOVAL | D72: 3 | E72: 200201 | F72: =1865/1000 -> 1.865 | G72: M | H72: C.I.P.N.E.S. GALLURA | I72: * | J72: R 13 - R3 | L72: CIPNES Gallura | M72: =1865/1000 -> 1.865 | N72: CIPNES Gallura | O72: - | P72: - | Q72: - | R72: -
A73: CIPNES Gallura | B73: 2019 | C73: CONDOMINIO CORDOVAL | D73: 5 | E73: 200201 | F73: =750/1000 -> 0.75 | G73: M | H73: C.I.P.N.E.S. GALLURA | I73: * | J73: R 13 - R3 | L73: CIPNES Gallura | M73: =750/1000 -> 0.75 | N73: CIPNES Gallura | O73: - | P73: - | Q73: - | R73: -
A74: CIPNES Gallura | B74: 2019 | C74: CONDOMINIO CORDOVAL | D74: 7 | E74: 200201 | F74: =900/1000 -> 0.9 | G74: M | H74: C.I.P.N.E.S. GALLURA | I74: * | J74: R 13 - R3 | L74: CIPNES Gallura | M74: =900/1000 -> 0.9 | N74: CIPNES Gallura | O74: - | P74: - | Q74: - | R74: -
A75: CIPNES Gallura | B75: 2019 | C75: CONDOMINIO CORDOVAL | D75: 11 | E75: 200201 | F75: =830/1000 -> 0.83 | G75: M | H75: C.I.P.N.E.S. GALLURA | I75: * | J75: R 13 - R3 | L75: CIPNES Gallura | M75: =830/1000 -> 0.83 | N75: CIPNES Gallura | O75: - | P75: - | Q75: - | R75: -
A76: CIPNES Gallura | B76: 2019 | C76: CONDOMINIO DOMOS DE ROCCA | D76: 4 | E76: 200201 | F76: =3835/1000 -> 3.835 | G76: M | H76: C.I.P.N.E.S. GALLURA | I76: * | J76: R 13 - R3 | L76: CIPNES Gallura | M76: =3835/1000 -> 3.835 | N76: CIPNES Gallura | O76: - | P76: - | Q76: - | R76: -
A77: CIPNES Gallura | B77: 2019 | C77: CONDOMINIO ELLE MAIORCA | D77: 7 | E77: 200201 | F77: =2580/1000 -> 2.58 | G77: M | H77: C.I.P.N.E.S. GALLURA | I77: * | J77: R 13 - R3 | L77: CIPNES Gallura | M77: =2580/1000 -> 2.58 | N77: CIPNES Gallura | O77: - | P77: - | Q77: - | R77: -
A78: CIPNES Gallura | B78: 2019 | C78: CONDOMINIO IL CARRUBO | D78: 4 | E78: 200201 | F78: =2410/1000 -> 2.41 | G78: M | H78: C.I.P.N.E.S. GALLURA | I78: * | J78: R 13 - R3 | L78: CIPNES Gallura | M78: =2410/1000 -> 2.41 | N78: CIPNES Gallura | O78: - | P78: - | Q78: - | R78: -
A79: CIPNES Gallura | B79: 2019 | C79: CONDOMINIO IMPRESE RIUNITE | D79: 11 | E79: 200201 | F79: =910/1000 -> 0.91 | G79: M | H79: C.I.P.N.E.S. GALLURA | I79: * | J79: R 13 - R3 | L79: CIPNES Gallura | M79: =910/1000 -> 0.91 | N79: CIPNES Gallura | O79: - | P79: - | Q79: - | R79: -
A80: CIPNES Gallura | B80: 2019 | C80: CONDOMINIO ISOLA BLU | D80: 5 | E80: 200201 | F80: =5245/1000 -> 5.245 | G80: M | H80: C.I.P.N.E.S. GALLURA | I80: * | J80: R 13 - R3 | L80: CIPNES Gallura | M80: =5245/1000 -> 5.245 | N80: CIPNES Gallura | O80: - | P80: - | Q80: - | R80: -
A81: CIPNES Gallura | B81: 2019 | C81: CONDOMINIO ISTANA MARE | D81: 5 | E81: 200201 | F81: =1240/1000 -> 1.24 | G81: M | H81: MEDITERRANEA AMBIENTE SRL | I81: 70 | J81: R 13 - R3 | L81: CIPNES Gallura | M81: =1240/1000 -> 1.24 | N81: CIPNES Gallura | O81: - | P81: - | Q81: - | R81: -
A82: CIPNES Gallura | B82: 2019 | C82: CONDOMINIO L'ALTO PEVERO | D82: 7 | E82: 200201 | F82: =550/1000 -> 0.55 | G82: M | H82: C.I.P.N.E.S. GALLURA | I82: * | J82: R 13 - R3 | L82: CIPNES Gallura | M82: =550/1000 -> 0.55 | N82: CIPNES Gallura | O82: - | P82: - | Q82: - | R82: -
A83: CIPNES Gallura | B83: 2019 | C83: CONDOMINIO LE TERRAZZE | D83: 3 | E83: 200201 | F83: =210/1000 -> 0.21 | G83: M | H83: C.I.P.N.E.S. GALLURA | I83: * | J83: R 13 - R3 | L83: CIPNES Gallura | M83: =210/1000 -> 0.21 | N83: CIPNES Gallura | O83: - | P83: - | Q83: - | R83: -
A84: CIPNES Gallura | B84: 2019 | C84: CONDOMINIO LE TERRAZZE | D84: 12 | E84: 200201 | F84: =695/1000 -> 0.695 | G84: M | H84: C.I.P.N.E.S. GALLURA | I84: * | J84: R 13 - R3 | L84: CIPNES Gallura | M84: =695/1000 -> 0.695 | N84: CIPNES Gallura | O84: - | P84: - | Q84: - | R84: -
A85: CIPNES Gallura | B85: 2019 | C85: CONDOMINIO LE TERRAZZE DEL PORTO | D85: 3 | E85: 200201 | F85: 3 | G85: M | H85: C.I.P.N.E.S. GALLURA | I85: * | J85: R 13 - R3 | L85: CIPNES Gallura | M85: 3 | N85: CIPNES Gallura | O85: - | P85: - | Q85: - | R85: -
A86: CIPNES Gallura | B86: 2019 | C86: CONDOMINIO LE TERRAZZE DEL PORTO | D86: 4 | E86: 200201 | F86: =2130/1000 -> 2.13 | G86: M | H86: C.I.P.N.E.S. GALLURA | I86: * | J86: R 13 - R3 | L86: CIPNES Gallura | M86: =2130/1000 -> 2.13 | N86: CIPNES Gallura | O86: - | P86: - | Q86: - | R86: -
A87: CIPNES Gallura | B87: 2019 | C87: CONDOMINIO LI CUNCHEDDI | D87: 2 | E87: 200201 | F87: =4380/1000 -> 4.38 | G87: M | H87: C.I.P.N.E.S. GALLURA | I87: * | J87: R 13 - R3 | L87: CIPNES Gallura | M87: =4380/1000 -> 4.38 | N87: CIPNES Gallura | O87: - | P87: - | Q87: - | R87: -
A88: CIPNES Gallura | B88: 2019 | C88: CONDOMINIO LE TERRAZZE DEL PORTO | D88: 3 | E88: 200201 | F88: 0.62 | G88: M | H88: C.I.P.N.E.S. GALLURA | I88: 70 | J88: R 13 - R3 | L88: CIPNES Gallura | M88: 0.62 | N88: CIPNES Gallura | O88: - | P88: - | Q88: - | R88: -
A89: CIPNES Gallura | B89: 2019 | C89: CONDOMINIO LI CUNCHEDDI | D89: 3 | E89: 200201 | F89: =1870/1000 -> 1.87 | G89: M | H89: C.I.P.N.E.S. GALLURA | I89: * | J89: R 13 - R3 | L89: CIPNES Gallura | M89: =1870/1000 -> 1.87 | N89: CIPNES Gallura | O89: - | P89: - | Q89: - | R89: -
A90: CIPNES Gallura | B90: 2019 | C90: CONDOMINIO LI CUNCHEDDI | D90: 6 | E90: 200201 | F90: =2015/1000 -> 2.015 | G90: M | H90: C.I.P.N.E.S. GALLURA | I90: * | J90: R 13 - R3 | L90: CIPNES Gallura | M90: =2015/1000 -> 2.015 | N90: CIPNES Gallura | O90: - | P90: - | Q90: - | R90: -
A91: CIPNES Gallura | B91: 2019 | C91: CONDOMINIO LI LICCIOLI | D91: 6 | E91: 200201 | F91: =2685/1000 -> 2.685 | G91: M | H91: C.I.P.N.E.S. GALLURA | I91: * | J91: R 13 - R3 | L91: CIPNES Gallura | M91: =2685/1000 -> 2.685 | N91: CIPNES Gallura | O91: - | P91: - | Q91: - | R91: -
A92: CIPNES Gallura | B92: 2019 | C92: CONDOMINIO LI LICCIOLI | D92: 11 | E92: 200201 | F92: 3 | G92: M | H92: C.I.P.N.E.S. GALLURA | I92: * | J92: R 13 - R3 | L92: CIPNES Gallura | M92: 3 | N92: CIPNES Gallura | O92: - | P92: - | Q92: - | R92: -
A93: CIPNES Gallura | B93: 2019 | C93: CONDOMINIO LI NIBBARI | D93: 1 | E93: 200201 | F93: =3770/1000 -> 3.77 | G93: M | H93: C.I.P.N.E.S. GALLURA | I93: * | J93: R 13 - R3 | L93: CIPNES Gallura | M93: =3770/1000 -> 3.77 | N93: CIPNES Gallura | O93: - | P93: - | Q93: - | R93: -
A94: CIPNES Gallura | B94: 2019 | C94: CONDOMINIO LI NIBBARI | D94: 3 | E94: 200201 | F94: =2420/1000 -> 2.42 | G94: M | H94: C.I.P.N.E.S. GALLURA | I94: * | J94: R 13 - R3 | L94: CIPNES Gallura | M94: =2420/1000 -> 2.42 | N94: CIPNES Gallura | O94: - | P94: - | Q94: - | R94: -
A95: CIPNES Gallura | B95: 2019 | C95: CONDOMINIO LI PIRI | D95: 5 | E95: 200201 | F95: =1570/1000 -> 1.57 | G95: M | H95: MEDITERRANEA AMBIENTE SRL | I95: 70 | J95: R 13 - R3 | L95: CIPNES Gallura | M95: =1570/1000 -> 1.57 | N95: CIPNES Gallura | O95: - | P95: - | Q95: - | R95: -
A96: CIPNES Gallura | B96: 2019 | C96: CONDOMINIO MARE CITTA' | D96: 8 | E96: 200201 | F96: =1165/1000 -> 1.165 | G96: M | H96: C.I.P.N.E.S. GALLURA | I96: * | J96: R 13 - R3 | L96: CIPNES Gallura | M96: =1165/1000 -> 1.165 | N96: CIPNES Gallura | O96: - | P96: - | Q96: - | R96: -
A97: CIPNES Gallura | B97: 2019 | C97: CONDOMINIO PORTO ROMANO | D97: 3 | E97: 200201 | F97: =1645/1000 -> 1.645 | G97: M | H97: C.I.P.N.E.S. GALLURA | I97: * | J97: R 13 - R3 | L97: CIPNES Gallura | M97: =1645/1000 -> 1.645 | N97: CIPNES Gallura | O97: - | P97: - | Q97: - | R97: -
A98: CIPNES Gallura | B98: 2019 | C98: CONDOMINIO LI LICCIOLI | D98: 11 | E98: 200201 | F98: 1.78 | G98: M | H98: C.I.P.N.E.S. GALLURA | I98: 70 | J98: R 13 - R3 | L98: CIPNES Gallura | M98: 1.78 | N98: CIPNES Gallura | O98: - | P98: - | Q98: - | R98: -
A99: CIPNES Gallura | B99: 2019 | C99: CONDOMINIO PORTO ROMANO | D99: 11 | E99: 200201 | F99: =2220/1000 -> 2.22 | G99: M | H99: C.I.P.N.E.S. GALLURA | I99: * | J99: R 13 - R3 | L99: CIPNES Gallura | M99: =2220/1000 -> 2.22 | N99: CIPNES Gallura | O99: - | P99: - | Q99: - | R99: -
A100: CIPNES Gallura | B100: 2019 | C100: CONDOMINIO PUNTA MARANA | D100: 1 | E100: 200201 | F100: =4760/1000 -> 4.76 | G100: M | H100: C.I.P.N.E.S. GALLURA | I100: * | J100: R 13 - R3 | L100: CIPNES Gallura | M100: =4760/1000 -> 4.76 | N100: CIPNES Gallura | O100: - | P100: - | Q100: - | R100: -
A101: CIPNES Gallura | B101: 2019 | C101: CONDOMINIO PUNTA MARANA | D101: 3 | E101: 200201 | F101: =6415/1000 -> 6.415 | G101: M | H101: C.I.P.N.E.S. GALLURA | I101: * | J101: R 13 - R3 | L101: CIPNES Gallura | M101: =6415/1000 -> 6.415 | N101: CIPNES Gallura | O101: - | P101: - | Q101: - | R101: -
A102: CIPNES Gallura | B102: 2019 | C102: CONDOMINIO PUNTA MARANA | D102: 4 | E102: 200201 | F102: =5545/1000 -> 5.545 | G102: M | H102: C.I.P.N.E.S. GALLURA | I102: * | J102: R 13 - R3 | L102: CIPNES Gallura | M102: =5545/1000 -> 5.545 | N102: CIPNES Gallura | O102: - | P102: - | Q102: - | R102: -
A103: CIPNES Gallura | B103: 2019 | C103: CONDOMINIO PUNTA MARANA | D103: 6 | E103: 200201 | F103: =4080/1000 -> 4.08 | G103: M | H103: C.I.P.N.E.S. GALLURA | I103: * | J103: R 13 - R3 | L103: CIPNES Gallura | M103: =4080/1000 -> 4.08 | N103: CIPNES Gallura | O103: - | P103: - | Q103: - | R103: -
A104: CIPNES Gallura | B104: 2019 | C104: CONDOMINIO PUNTA MARANA | D104: 7 | E104: 200201 | F104: =1020/1000 -> 1.02 | G104: M | H104: C.I.P.N.E.S. GALLURA | I104: * | J104: R 13 - R3 | L104: CIPNES Gallura | M104: =1020/1000 -> 1.02 | N104: CIPNES Gallura | O104: - | P104: - | Q104: - | R104: -
A105: CIPNES Gallura | B105: 2019 | C105: CONDOMINIO PUNTA MARANA | D105: 8 | E105: 200201 | F105: =13720/1000 -> 13.72 | G105: M | H105: C.I.P.N.E.S. GALLURA | I105: * | J105: R 13 - R3 | L105: CIPNES Gallura | M105: =13720/1000 -> 13.72 | N105: CIPNES Gallura | O105: - | P105: - | Q105: - | R105: -
A106: CIPNES Gallura | B106: 2019 | C106: CONDOMINIO PUNTA MARANA | D106: 12 | E106: 200201 | F106: =9765/1000 -> 9.765 | G106: M | H106: C.I.P.N.E.S. GALLURA | I106: * | J106: R 13 - R3 | L106: CIPNES Gallura | M106: =9765/1000 -> 9.765 | N106: CIPNES Gallura | O106: - | P106: - | Q106: - | R106: -
A107: CIPNES Gallura | B107: 2019 | C107: CONDOMINIO PUNTA MOLARA | D107: 1 | E107: 200201 | F107: =4685/1000 -> 4.685 | G107: M | H107: C.I.P.N.E.S. GALLURA | I107: * | J107: R 13 - R3 | L107: CIPNES Gallura | M107: =4685/1000 -> 4.685 | N107: CIPNES Gallura | O107: - | P107: - | Q107: - | R107: -
A108: CIPNES Gallura | B108: 2019 | C108: CONDOMINIO PUNTA MOLARA | D108: 2 | E108: 200201 | F108: =8810/1000 -> 8.81 | G108: M | H108: C.I.P.N.E.S. GALLURA | I108: * | J108: R 13 - R3 | L108: CIPNES Gallura | M108: =8810/1000 -> 8.81 | N108: CIPNES Gallura | O108: - | P108: - | Q108: - | R108: -
A109: CIPNES Gallura | B109: 2019 | C109: CONDOMINIO PUNTA MOLARA | D109: 3 | E109: 200201 | F109: =3880/1000 -> 3.88 | G109: M | H109: C.I.P.N.E.S. GALLURA | I109: * | J109: R 13 - R3 | L109: CIPNES Gallura | M109: =3880/1000 -> 3.88 | N109: CIPNES Gallura | O109: - | P109: - | Q109: - | R109: -
A110: CIPNES Gallura | B110: 2019 | C110: CONDOMINIO PUNTA MOLARA | D110: 6 | E110: 200201 | F110: =3280/1000 -> 3.28 | G110: M | H110: C.I.P.N.E.S. GALLURA | I110: * | J110: R 13 - R3 | L110: CIPNES Gallura | M110: =3280/1000 -> 3.28 | N110: CIPNES Gallura | O110: - | P110: - | Q110: - | R110: -
A111: CIPNES Gallura | B111: 2019 | C111: CONDOMINIO RESIDENCE LISCIA DI VACCA | D111: 3 | E111: 200201 | F111: =2720/1000 -> 2.72 | G111: M | H111: C.I.P.N.E.S. GALLURA | I111: * | J111: R 13 - R3 | L111: CIPNES Gallura | M111: =2720/1000 -> 2.72 | N111: CIPNES Gallura | O111: - | P111: - | Q111: - | R111: -
A112: CIPNES Gallura | B112: 2019 | C112: CONDOMINIO RESIDENCE LISCIA DI VACCA | D112: 8 | E112: 200201 | F112: =2170/1000 -> 2.17 | G112: M | H112: C.I.P.N.E.S. GALLURA | I112: * | J112: R 13 - R3 | L112: CIPNES Gallura | M112: =2170/1000 -> 2.17 | N112: CIPNES Gallura | O112: - | P112: - | Q112: - | R112: -
A113: CIPNES Gallura | B113: 2019 | C113: CONDOMINIO RESIDENCE VERONESE | D113: 9 | E113: 200201 | F113: =670/1000 -> 0.67 | G113: M | H113: C.I.P.N.E.S. GALLURA | I113: * | J113: R 13 - R3 | L113: CIPNES Gallura | M113: =670/1000 -> 0.67 | N113: CIPNES Gallura | O113: - | P113: - | Q113: - | R113: -
A114: CIPNES Gallura | B114: 2019 | C114: CONDOMINIO RESIDENZA "C" | D114: 2 | E114: 200201 | F114: =2945/1000 -> 2.945 | G114: M | H114: C.I.P.N.E.S. GALLURA | I114: * | J114: R 13 - R3 | L114: CIPNES Gallura | M114: =2945/1000 -> 2.945 | N114: CIPNES Gallura | O114: - | P114: - | Q114: - | R114: -
A115: CIPNES Gallura | B115: 2019 | C115: CONDOMINIO RESIDENZA PUNTA DON DIEGO | D115: 1 | E115: 200201 | F115: =5785/1000 -> 5.785 | G115: M | H115: C.I.P.N.E.S. GALLURA | I115: * | J115: R 13 - R3 | L115: CIPNES Gallura | M115: =5785/1000 -> 5.785 | N115: CIPNES Gallura | O115: - | P115: - | Q115: - | R115: -
A116: CIPNES Gallura | B116: 2019 | C116: CONDOMINIO RESIDENZA PUNTA DON DIEGO | D116: 2 | E116: 200201 | F116: =2675/1000 -> 2.675 | G116: M | H116: C.I.P.N.E.S. GALLURA | I116: * | J116: R 13 - R3 | L116: CIPNES Gallura | M116: =2675/1000 -> 2.675 | N116: CIPNES Gallura | O116: - | P116: - | Q116: - | R116: -
A117: CIPNES Gallura | B117: 2019 | C117: CONDOMINIO RESIDENZA PUNTA DON DIEGO | D117: 3 | E117: 200201 | F117: =5205/1000 -> 5.205 | G117: M | H117: C.I.P.N.E.S. GALLURA | I117: * | J117: R 13 - R3 | L117: CIPNES Gallura | M117: =5205/1000 -> 5.205 | N117: CIPNES Gallura | O117: - | P117: - | Q117: - | R117: -
A118: CIPNES Gallura | B118: 2019 | C118: CONDOMINIO RESIDENZA PUNTA DON DIEGO | D118: 4 | E118: 200201 | F118: =2940/1000 -> 2.94 | G118: M | H118: C.I.P.N.E.S. GALLURA | I118: * | J118: R 13 - R3 | L118: CIPNES Gallura | M118: =2940/1000 -> 2.94 | N118: CIPNES Gallura | O118: - | P118: - | Q118: - | R118: -
A119: CIPNES Gallura | B119: 2019 | C119: CONDOMINIO RESIDENZA PUNTA DON DIEGO | D119: 5 | E119: 200201 | F119: =1455/1000 -> 1.455 | G119: M | H119: C.I.P.N.E.S. GALLURA | I119: * | J119: R 13 - R3 | L119: CIPNES Gallura | M119: =1455/1000 -> 1.455 | N119: CIPNES Gallura | O119: - | P119: - | Q119: - | R119: -
A120: CIPNES Gallura | B120: 2019 | C120: CONDOMINIO RESIDENZA PUNTA DON DIEGO | D120: 11 | E120: 200201 | F120: =8515/1000 -> 8.515 | G120: M | H120: C.I.P.N.E.S. GALLURA | I120: * | J120: R 13 - R3 | L120: CIPNES Gallura | M120: =8515/1000 -> 8.515 | N120: CIPNES Gallura | O120: - | P120: - | Q120: - | R120: -
A121: CIPNES Gallura | B121: 2019 | C121: CONDOMINIO RESIDENZA PUNTA DON DIEGO | D121: 12 | E121: 200201 | F121: =8305/1000 -> 8.305 | G121: M | H121: C.I.P.N.E.S. GALLURA | I121: * | J121: R 13 - R3 | L121: CIPNES Gallura | M121: =8305/1000 -> 8.305 | N121: CIPNES Gallura | O121: - | P121: - | Q121: - | R121: -
A122: CIPNES Gallura | B122: 2019 | C122: CONDOMINIO RESIDENZA SUL PORTO | D122: 1 | E122: 200201 | F122: =1180/1000 -> 1.18 | G122: M | H122: ECO OLBIA SRL | I122: 60 | J122: R 13 - R3 | L122: CIPNES Gallura | M122: =1180/1000 -> 1.18 | N122: CIPNES Gallura | O122: - | P122: - | Q122: - | R122: -
A123: CIPNES Gallura | B123: 2019 | C123: CONDOMINIO RINASCITA | D123: 6 | E123: 200201 | F123: =1020/1000 -> 1.02 | G123: M | H123: C.I.P.N.E.S. GALLURA | I123: * | J123: R 13 - R3 | L123: CIPNES Gallura | M123: =1020/1000 -> 1.02 | N123: CIPNES Gallura | O123: - | P123: - | Q123: - | R123: -
A124: CIPNES Gallura | B124: 2019 | C124: CONDOMINIO STRAND HAUS BUNTE | D124: 3 | E124: 200201 | F124: =2970/1000 -> 2.97 | G124: M | H124: C.I.P.N.E.S. GALLURA | I124: * | J124: R 13 - R3 | L124: CIPNES Gallura | M124: =2970/1000 -> 2.97 | N124: CIPNES Gallura | O124: - | P124: - | Q124: - | R124: -
A125: CIPNES Gallura | B125: 2019 | C125: CONDOMINIO SU TERRABINU | D125: 4 | E125: 200201 | F125: =1070/1000 -> 1.07 | G125: M | H125: C.I.P.N.E.S. GALLURA | I125: * | J125: R 13 - R3 | L125: CIPNES Gallura | M125: =1070/1000 -> 1.07 | N125: CIPNES Gallura | O125: - | P125: - | Q125: - | R125: -
A126: CIPNES Gallura | B126: 2019 | C126: CONDOMINIO SU TERRABINU | D126: 5 | E126: 200201 | F126: =1660/1000 -> 1.66 | G126: M | H126: C.I.P.N.E.S. GALLURA | I126: * | J126: R 13 - R3 | L126: CIPNES Gallura | M126: =1660/1000 -> 1.66 | N126: CIPNES Gallura | O126: - | P126: - | Q126: - | R126: -
A127: CIPNES Gallura | B127: 2019 | C127: CONDOMINIO SU TERRABINU | D127: 6 | E127: 200201 | F127: =3655/1000 -> 3.655 | G127: M | H127: C.I.P.N.E.S. GALLURA | I127: * | J127: R 13 - R3 | L127: CIPNES Gallura | M127: =3655/1000 -> 3.655 | N127: CIPNES Gallura | O127: - | P127: - | Q127: - | R127: -
A128: CIPNES Gallura | B128: 2019 | C128: CONDOMINIO SU TERRABINU | D128: 7 | E128: 200201 | F128: =1415/1000 -> 1.415 | G128: M | H128: C.I.P.N.E.S. GALLURA | I128: * | J128: R 13 - R3 | L128: CIPNES Gallura | M128: =1415/1000 -> 1.415 | N128: CIPNES Gallura | O128: - | P128: - | Q128: - | R128: -
A129: CIPNES Gallura | B129: 2019 | C129: CONDOMINIO SU TERRABINU | D129: 8 | E129: 200201 | F129: =1450/1000 -> 1.45 | G129: M | H129: C.I.P.N.E.S. GALLURA | I129: * | J129: R 13 - R3 | L129: CIPNES Gallura | M129: =1450/1000 -> 1.45 | N129: CIPNES Gallura | O129: - | P129: - | Q129: - | R129: -
A130: CIPNES Gallura | B130: 2019 | C130: CONDOMINIO SU TERRABINU | D130: 9 | E130: 200201 | F130: =1690/1000 -> 1.69 | G130: M | H130: C.I.P.N.E.S. GALLURA | I130: * | J130: R 13 - R3 | L130: CIPNES Gallura | M130: =1690/1000 -> 1.69 | N130: CIPNES Gallura | O130: - | P130: - | Q130: - | R130: -
A131: CIPNES Gallura | B131: 2019 | C131: CONDOMINIO SU TERRABINU | D131: 10 | E131: 200201 | F131: =1220/1000 -> 1.22 | G131: M | H131: C.I.P.N.E.S. GALLURA | I131: * | J131: R 13 - R3 | L131: CIPNES Gallura | M131: =1220/1000 -> 1.22 | N131: CIPNES Gallura | O131: - | P131: - | Q131: - | R131: -
A132: CIPNES Gallura | B132: 2019 | C132: CONDOMINIO TERRATA | D132: 5 | E132: 200201 | F132: =1535/1000 -> 1.535 | G132: M | H132: C.I.P.N.E.S. GALLURA | I132: * | J132: R 13 - R3 | L132: CIPNES Gallura | M132: =1535/1000 -> 1.535 | N132: CIPNES Gallura | O132: - | P132: - | Q132: - | R132: -
A133: CIPNES Gallura | B133: 2019 | C133: CONDOMINIO TERRATA | D133: 6 | E133: 200201 | F133: =4675/1000 -> 4.675 | G133: M | H133: C.I.P.N.E.S. GALLURA | I133: * | J133: R 13 - R3 | L133: CIPNES Gallura | M133: =4675/1000 -> 4.675 | N133: CIPNES Gallura | O133: - | P133: - | Q133: - | R133: -
A134: CIPNES Gallura | B134: 2019 | C134: CONDOMINIO TERRATA | D134: 7 | E134: 200201 | F134: =3305/1000 -> 3.305 | G134: M | H134: C.I.P.N.E.S. GALLURA | I134: * | J134: R 13 - R3 | L134: CIPNES Gallura | M134: =3305/1000 -> 3.305 | N134: CIPNES Gallura | O134: - | P134: - | Q134: - | R134: -
A135: CIPNES Gallura | B135: 2019 | C135: CONDOMINIO TERRATA | D135: 8 | E135: 200201 | F135: =4690/1000 -> 4.69 | G135: M | H135: C.I.P.N.E.S. GALLURA | I135: * | J135: R 13 - R3 | L135: CIPNES Gallura | M135: =4690/1000 -> 4.69 | N135: CIPNES Gallura | O135: - | P135: - | Q135: - | R135: -
A136: CIPNES Gallura | B136: 2019 | C136: CONDOMINIO TERRATA | D136: 9 | E136: 200201 | F136: =1255/1000 -> 1.255 | G136: M | H136: C.I.P.N.E.S. GALLURA | I136: * | J136: R 13 - R3 | L136: CIPNES Gallura | M136: =1255/1000 -> 1.255 | N136: CIPNES Gallura | O136: - | P136: - | Q136: - | R136: -
A137: CIPNES Gallura | B137: 2019 | C137: CONDOMINIO TERZA SPIAGGIA EST | D137: 4 | E137: 200201 | F137: =3000/1000 -> 3 | G137: M | H137: C.I.P.N.E.S. GALLURA | I137: * | J137: R 13 - R3 | L137: CIPNES Gallura | M137: =3000/1000 -> 3 | N137: CIPNES Gallura | O137: - | P137: - | Q137: - | R137: -
A138: CIPNES Gallura | B138: 2019 | C138: CONDOMINIO TERZA SPIAGGIA EST | D138: 6 | E138: 200201 | F138: =1325/1000 -> 1.325 | G138: M | H138: C.I.P.N.E.S. GALLURA | I138: * | J138: R 13 - R3 | L138: CIPNES Gallura | M138: =1325/1000 -> 1.325 | N138: CIPNES Gallura | O138: - | P138: - | Q138: - | R138: -
A139: CIPNES Gallura | B139: 2019 | C139: CONDOMINIO TERZA SPIAGGIA EST | D139: 7 | E139: 200201 | F139: =1250/1000 -> 1.25 | G139: M | H139: C.I.P.N.E.S. GALLURA | I139: * | J139: R 13 - R3 | L139: CIPNES Gallura | M139: =1250/1000 -> 1.25 | N139: CIPNES Gallura | O139: - | P139: - | Q139: - | R139: -
A140: CIPNES Gallura | B140: 2019 | C140: CONDOMINIO TERZA SPIAGGIA EST | D140: 8 | E140: 200201 | F140: =1610/1000 -> 1.61 | G140: M | H140: C.I.P.N.E.S. GALLURA | I140: * | J140: R 13 - R3 | L140: CIPNES Gallura | M140: =1610/1000 -> 1.61 | N140: CIPNES Gallura | O140: - | P140: - | Q140: - | R140: -
A141: CIPNES Gallura | B141: 2019 | C141: CONDOMINIO TERZA SPIAGGIA EST | D141: 9 | E141: 200201 | F141: =2445/1000 -> 2.445 | G141: M | H141: C.I.P.N.E.S. GALLURA | I141: * | J141: R 13 - R3 | L141: CIPNES Gallura | M141: =2445/1000 -> 2.445 | N141: CIPNES Gallura | O141: - | P141: - | Q141: - | R141: -
A142: CIPNES Gallura | B142: 2019 | C142: CONDOMINIO TERZA SPIAGGIA EST | D142: 12 | E142: 200201 | F142: =2010/1000 -> 2.01 | G142: M | H142: C.I.P.N.E.S. GALLURA | I142: * | J142: R 13 - R3 | L142: CIPNES Gallura | M142: =2010/1000 -> 2.01 | N142: CIPNES Gallura | O142: - | P142: - | Q142: - | R142: -
A143: CIPNES Gallura | B143: 2019 | C143: CONDOMINIO VILLAGGIO VERMENTINO | D143: 10 | E143: 200201 | F143: =3370/1000 -> 3.37 | G143: M | H143: C.I.P.N.E.S. GALLURA | I143: * | J143: R 13 - R3 | L143: CIPNES Gallura | M143: =3370/1000 -> 3.37 | N143: CIPNES Gallura | O143: - | P143: - | Q143: - | R143: -
A144: CIPNES Gallura | B144: 2019 | C144: COSPE SRL | D144: 4 | E144: 200201 | F144: =985/1000 -> 0.985 | G144: M | H144: C.I.P.N.E.S. GALLURA | I144: * | J144: R 13 - R3 | L144: CIPNES Gallura | M144: =985/1000 -> 0.985 | N144: CIPNES Gallura | O144: - | P144: - | Q144: - | R144: -
A145: CIPNES Gallura | B145: 2019 | C145: COSTA EST S.R.L. | D145: 7 | E145: 200201 | F145: =6340/1000 -> 6.34 | G145: M | H145: ECO OLBIA SRL | I145: 60 | J145: R 13 - R3 | L145: CIPNES Gallura | M145: =6340/1000 -> 6.34 | N145: CIPNES Gallura | O145: - | P145: - | Q145: - | R145: -
A146: CIPNES Gallura | B146: 2019 | C146: COSTRUZIONI CIVILI E INDUSTRIALI SARDEGNA | D146: 3 | E146: 200201 | F146: =1170/1000 -> 1.17 | G146: M | H146: C.I.P.N.E.S. GALLURA | I146: * | J146: R 13 - R3 | L146: CIPNES Gallura | M146: =1170/1000 -> 1.17 | N146: CIPNES Gallura | O146: - | P146: - | Q146: - | R146: -
A147: CIPNES Gallura | B147: 2019 | C147: CRISPO ALFONSO | D147: 10 | E147: 200201 | F147: =2965/1000 -> 2.965 | G147: M | H147: C.I.P.N.E.S. GALLURA | I147: * | J147: R 13 - R3 | L147: CIPNES Gallura | M147: =2965/1000 -> 2.965 | N147: CIPNES Gallura | O147: - | P147: - | Q147: - | R147: -
A148: CIPNES Gallura | B148: 2019 | C148: DEIANA ARREDAMENTI COMMERCIALI SRL | D148: 6 | E148: 200138 | F148: =8185/1000 -> 8.185 | G148: M | H148: C.I.P.N.E.S. GALLURA | I148: * | J148: R 13 - R3 | L148: CIPNES Gallura | M148: =8185/1000 -> 8.185 | N148: CIPNES Gallura | O148: - | P148: - | Q148: - | R148: -
A149: CIPNES Gallura | B149: 2019 | C149: DEIANA ARREDAMENTI COMMERCIALI SRL | D149: 7 | E149: 200138 | F149: 6.28 | G149: M | H149: C.I.P.N.E.S. GALLURA | I149: * | J149: R 13 - R3 | L149: CIPNES Gallura | M149: 6.28 | N149: CIPNES Gallura | O149: - | P149: - | Q149: - | R149: -
A150: CIPNES Gallura | B150: 2019 | C150: DEIANA ARREDAMENTI COMMERCIALI SRL | D150: 8 | E150: 200138 | F150: 3.64 | G150: M | H150: C.I.P.N.E.S. GALLURA | I150: * | J150: R 13 - R3 | L150: CIPNES Gallura | M150: 3.64 | N150: CIPNES Gallura | O150: - | P150: - | Q150: - | R150: -
A151: CIPNES Gallura | B151: 2019 | C151: DELITALA FRANCESCO | D151: 4 | E151: 200201 | F151: =695/1000 -> 0.695 | G151: M | H151: ECO OLBIA SRL | I151: 60 | J151: R 13 - R3 | L151: CIPNES Gallura | M151: =695/1000 -> 0.695 | N151: CIPNES Gallura | O151: - | P151: - | Q151: - | R151: -
A152: CIPNES Gallura | B152: 2019 | C152: DELOGU MARCO | D152: 4 | E152: 200201 | F152: =770/1000 -> 0.77 | G152: M | H152: C.I.P.N.E.S. GALLURA | I152: * | J152: R 13 - R3 | L152: CIPNES Gallura | M152: =770/1000 -> 0.77 | N152: CIPNES Gallura | O152: - | P152: - | Q152: - | R152: -
A153: CIPNES Gallura | B153: 2019 | C153: DITTA ACCARDO EDOARDO | D153: 3 | E153: 200201 | F153: =5290/1000 -> 5.29 | G153: M | H153: C.I.P.N.E.S. GALLURA | I153: * | J153: R 13 - R3 | L153: CIPNES Gallura | M153: =5290/1000 -> 5.29 | N153: CIPNES Gallura | O153: - | P153: - | Q153: - | R153: -
A154: CIPNES Gallura | B154: 2019 | C154: DITTA SATTA GIAMPIETRO | D154: 3 | E154: 200201 | F154: 3 | G154: M | H154: C.I.P.N.E.S. GALLURA | I154: * | J154: R 13 - R3 | L154: CIPNES Gallura | M154: 3 | N154: CIPNES Gallura | O154: - | P154: - | Q154: - | R154: -
A155: CIPNES Gallura | B155: 2019 | C155: DITTA SATTA GIAMPIETRO | D155: 4 | E155: 200201 | F155: =3035/1000 -> 3.035 | G155: M | H155: C.I.P.N.E.S. GALLURA | I155: * | J155: R 13 - R3 | L155: CIPNES Gallura | M155: =3035/1000 -> 3.035 | N155: CIPNES Gallura | O155: - | P155: - | Q155: - | R155: -
A156: CIPNES Gallura | B156: 2019 | C156: DITTA SATTA GIAMPIETRO | D156: 5 | E156: 200201 | F156: =7220/1000 -> 7.22 | G156: M | H156: C.I.P.N.E.S. GALLURA | I156: * | J156: R 13 - R3 | L156: CIPNES Gallura | M156: =7220/1000 -> 7.22 | N156: CIPNES Gallura | O156: - | P156: - | Q156: - | R156: -
A157: CIPNES Gallura | B157: 2019 | C157: DEIANA ARREDAMENTI COMMERCIALI SRL | D157: 7 | E157: 200138 | F157: 2.25 | G157: M | H157: C.I.P.N.E.S. GALLURA | I157: 70 | J157: R 13 - R3 | L157: CIPNES Gallura | M157: 2.25 | N157: CIPNES Gallura | O157: - | P157: - | Q157: - | R157: -
A158: CIPNES Gallura | B158: 2019 | C158: DITTA SATTA GIAMPIETRO | D158: 7 | E158: 200201 | F158: =2310/1000 -> 2.31 | G158: M | H158: C.I.P.N.E.S. GALLURA | I158: * | J158: R 13 - R3 | L158: CIPNES Gallura | M158: =2310/1000 -> 2.31 | N158: CIPNES Gallura | O158: - | P158: - | Q158: - | R158: -
A159: CIPNES Gallura | B159: 2019 | C159: DITTA SATTA GIAMPIETRO | D159: 8 | E159: 200201 | F159: =2175/1000 -> 2.175 | G159: M | H159: C.I.P.N.E.S. GALLURA | I159: * | J159: R 13 - R3 | L159: CIPNES Gallura | M159: =2175/1000 -> 2.175 | N159: CIPNES Gallura | O159: - | P159: - | Q159: - | R159: -
A160: CIPNES Gallura | B160: 2019 | C160: DITTA SATTA GIAMPIETRO | D160: 10 | E160: 200201 | F160: =1200/1000 -> 1.2 | G160: M | H160: C.I.P.N.E.S. GALLURA | I160: * | J160: R 13 - R3 | L160: CIPNES Gallura | M160: =1200/1000 -> 1.2 | N160: CIPNES Gallura | O160: - | P160: - | Q160: - | R160: -
A161: CIPNES Gallura | B161: 2019 | C161: DITTA SCANU ALESSANDRO | D161: 9 | E161: 200201 | F161: =985/1000 -> 0.985 | G161: M | H161: C.I.P.N.E.S. GALLURA | I161: * | J161: R 13 - R3 | L161: CIPNES Gallura | M161: =985/1000 -> 0.985 | N161: CIPNES Gallura | O161: - | P161: - | Q161: - | R161: -
A162: CIPNES Gallura | B162: 2019 | C162: DOGE SPA | D162: 5 | E162: 200201 | F162: =1800/1000 -> 1.8 | G162: M | H162: C.I.P.N.E.S. GALLURA | I162: * | J162: R 13 - R3 | L162: CIPNES Gallura | M162: =1800/1000 -> 1.8 | N162: CIPNES Gallura | O162: - | P162: - | Q162: - | R162: -
A163: CIPNES Gallura | B163: 2019 | C163: DS GIARDINI DI DETTORI SALVATORE | D163: 7 | E163: 200201 | F163: 6 | G163: M | H163: C.I.P.N.E.S. GALLURA | I163: * | J163: R 13 - R3 | L163: CIPNES Gallura | M163: 6 | N163: CIPNES Gallura | O163: - | P163: - | Q163: - | R163: -
A164: CIPNES Gallura | B164: 2019 | C164: DS GIARDINI DI DETTORI SALVATORE | D164: 8 | E164: 200201 | F164: 6.01 | G164: M | H164: C.I.P.N.E.S. GALLURA | I164: * | J164: R 13 - R3 | L164: CIPNES Gallura | M164: 6.01 | N164: CIPNES Gallura | O164: - | P164: - | Q164: - | R164: -
A165: CIPNES Gallura | B165: 2019 | C165: E.F.F.E.C.I.P.I. | D165: 10 | E165: 200201 | F165: 4.72 | G165: M | H165: C.I.P.N.E.S. GALLURA | I165: * | J165: R 13 - R3 | L165: CIPNES Gallura | M165: 4.72 | N165: CIPNES Gallura | O165: - | P165: - | Q165: - | R165: -
A166: CIPNES Gallura | B166: 2019 | C166: ECO OLBIA S.R.L. | D166: 10 | E166: 170201 | F166: =2690/1000 -> 2.69 | G166: M | H166: ECO OLBIA SRL | I166: 60 | J166: R 13 - R3 | L166: CIPNES Gallura | M166: =2690/1000 -> 2.69 | N166: CIPNES Gallura | O166: - | P166: - | Q166: - | R166: -
A167: CIPNES Gallura | B167: 2019 | C167: CETIS SRL | D167: 9 | E167: 150103 | F167: =9105/1000 -> 9.105 | G167: M | H167: C.I.P.N.E.S. GALLURA | I167: * | J167: R 13 - R3 | L167: CIPNES Gallura | M167: =9105/1000 -> 9.105 | N167: CIPNES Gallura | O167: - | P167: - | Q167: - | R167: -
A168: CIPNES Gallura | B168: 2019 | C168: ECO OLBIA S.R.L. | D168: 12 | E168: 150103 | F168: =230/1000 -> 0.23 | G168: M | H168: ECO OLBIA SRL | I168: 55 | J168: R 13 - R3 | L168: CIPNES Gallura | M168: =230/1000 -> 0.23 | N168: CIPNES Gallura | O168: - | P168: - | Q168: - | R168: -
A169: CIPNES Gallura | B169: 2019 | C169: DITTA SATTA GIAMPIETRO | D169: 3 | E169: 200201 | F169: 0.82 | G169: M | H169: C.I.P.N.E.S. GALLURA | I169: 70 | J169: R 13 - R3 | L169: CIPNES Gallura | M169: 0.82 | N169: CIPNES Gallura | O169: - | P169: - | Q169: - | R169: -
A170: CIPNES Gallura | B170: 2019 | C170: ECO TECNA S.N.C | D170: 3 | E170: 170201 | F170: 6.01 | G170: M | H170: C.I.P.N.E.S. GALLURA | I170: * | J170: R 13 - R3 | L170: CIPNES Gallura | M170: 6.01 | N170: CIPNES Gallura | O170: - | P170: - | Q170: - | R170: -
A171: CIPNES Gallura | B171: 2019 | C171: ECO TECNA S.N.C | D171: 4 | E171: 170201 | F171: =3825/1000 -> 3.825 | G171: M | H171: C.I.P.N.E.S. GALLURA | I171: * | J171: R 13 - R3 | L171: CIPNES Gallura | M171: =3825/1000 -> 3.825 | N171: CIPNES Gallura | O171: - | P171: - | Q171: - | R171: -
A172: CIPNES Gallura | B172: 2019 | C172: ECOCENTRO DEMOLIZIONI | D172: 1 | E172: 150103 | F172: =7930/1000 -> 7.93 | G172: M | H172: ECOCENTRO DEMOLIZIONI | I172: 55 | J172: R 13 - R3 | L172: CIPNES Gallura | M172: =7930/1000 -> 7.93 | N172: CIPNES Gallura | O172: - | P172: - | Q172: - | R172: -
A173: CIPNES Gallura | B173: 2019 | C173: ECOCENTRO DEMOLIZIONI | D173: 5 | E173: 150103 | F173: =4340/1000 -> 4.34 | G173: M | H173: ECOCENTRO DEMOLIZIONI | J173: R 13 - R3 | L173: CIPNES Gallura | M173: =4340/1000 -> 4.34 | N173: CIPNES Gallura | O173: - | P173: - | Q173: - | R173: -
A174: CIPNES Gallura | B174: 2019 | C174: ECOCENTRO DEMOLIZIONI | D174: 6 | E174: 150103 | F174: =3615/1000 -> 3.615 | G174: M | H174: ECOCENTRO DEMOLIZIONI | I174: 70 | J174: R 13 - R3 | L174: CIPNES Gallura | M174: =3615/1000 -> 3.615 | N174: CIPNES Gallura | O174: - | P174: - | Q174: - | R174: -
A175: CIPNES Gallura | B175: 2019 | C175: ECOCENTRO DEMOLIZIONI | D175: 7 | E175: 150103 | F175: =16580/1000 -> 16.58 | G175: M | H175: ECOCENTRO DEMOLIZIONI | I175: 70 | J175: R 13 - R3 | L175: CIPNES Gallura | M175: =16580/1000 -> 16.58 | N175: CIPNES Gallura | O175: - | P175: - | Q175: - | R175: -
A176: CIPNES Gallura | B176: 2019 | C176: ECOCENTRO DEMOLIZIONI | D176: 10 | E176: 150103 | F176: =6835/1000 -> 6.835 | G176: M | H176: ECOCENTRO DEMOLIZIONI | I176: 70 | J176: R 13 - R3 | L176: CIPNES Gallura | M176: =6835/1000 -> 6.835 | N176: CIPNES Gallura | O176: - | P176: - | Q176: - | R176: -
A177: CIPNES Gallura | B177: 2019 | C177: ECOSERVICE S.R.L | D177: 9 | E177: 200201 | F177: =720/1000 -> 0.72 | G177: M | H177: ECOSERVICE S.R.L | I177: 70 | J177: R 13 - R3 | L177: CIPNES Gallura | M177: =720/1000 -> 0.72 | N177: CIPNES Gallura | O177: - | P177: - | Q177: - | R177: -
A178: CIPNES Gallura | B178: 2019 | C178: ECOSFERA SRL | D178: 1 | E178: 200201 | F178: =1500/1000 -> 1.5 | G178: M | H178: ECOSFERA SRL | I178: 60 | J178: R 13 - R3 | L178: CIPNES Gallura | M178: =1500/1000 -> 1.5 | N178: CIPNES Gallura | O178: - | P178: - | Q178: - | R178: -
A179: CIPNES Gallura | B179: 2019 | C179: ECOSFERA SRL | D179: 2 | E179: 200201 | F179: =5915/1000 -> 5.915 | G179: M | H179: ECOSFERA SRL | I179: 70 | J179: R 13 - R3 | L179: CIPNES Gallura | M179: =5915/1000 -> 5.915 | N179: CIPNES Gallura | O179: - | P179: - | Q179: - | R179: -
A180: CIPNES Gallura | B180: 2019 | C180: ECO TECNA S.N.C | D180: 3 | E180: 170201 | F180: 2.25 | G180: M | H180: C.I.P.N.E.S. GALLURA | I180: 70 | J180: R 13 - R3 | L180: CIPNES Gallura | M180: 2.25 | N180: CIPNES Gallura | O180: - | P180: - | Q180: - | R180: -
A181: CIPNES Gallura | B181: 2019 | C181: ECOSFERA SRL | D181: 3 | E181: 200201 | F181: =11105/1000 -> 11.105 | G181: M | H181: ECOSFERA SRL | I181: 70 | J181: R 13 - R3 | L181: CIPNES Gallura | M181: =11105/1000 -> 11.105 | N181: CIPNES Gallura | O181: - | P181: - | Q181: - | R181: -
A182: CIPNES Gallura | B182: 2019 | C182: ECOSFERA SRL | D182: 4 | E182: 200201 | F182: =12025/1000 -> 12.025 | G182: M | H182: ECOSFERA SRL | I182: 70 | J182: R 13 - R3 | L182: CIPNES Gallura | M182: =12025/1000 -> 12.025 | N182: CIPNES Gallura | O182: - | P182: - | Q182: - | R182: -
A183: CIPNES Gallura | B183: 2019 | C183: ECOSFERA SRL | D183: 5 | E183: 200201 | F183: =1635/1000 -> 1.635 | G183: M | H183: ECOSFERA SRL | I183: 70 | J183: R 13 - R3 | L183: CIPNES Gallura | M183: =1635/1000 -> 1.635 | N183: CIPNES Gallura | O183: - | P183: - | Q183: - | R183: -
A184: CIPNES Gallura | B184: 2019 | C184: ECOSFERA SRL | D184: 6 | E184: 200201 | F184: =1295/1000 -> 1.295 | G184: M | H184: ECOSFERA SRL | I184: 70 | J184: R 13 - R3 | L184: CIPNES Gallura | M184: =1295/1000 -> 1.295 | N184: CIPNES Gallura | O184: - | P184: - | Q184: - | R184: -
A185: CIPNES Gallura | B185: 2019 | C185: ECOSFERA SRL | D185: 7 | E185: 200201 | F185: =1385/1000 -> 1.385 | G185: M | H185: ECOSFERA SRL | I185: 70 | J185: R 13 - R3 | L185: CIPNES Gallura | M185: =1385/1000 -> 1.385 | N185: CIPNES Gallura | O185: - | P185: - | Q185: - | R185: -
A186: CIPNES Gallura | B186: 2019 | C186: DS GIARDINI DI DETTORI SALVATORE | D186: 8 | E186: 200201 | F186: 8.18 | G186: M | H186: C.I.P.N.E.S. GALLURA | I186: 70 | J186: R 13 - R3 | L186: CIPNES Gallura | M186: 8.18 | N186: CIPNES Gallura | O186: - | P186: - | Q186: - | R186: -
A187: CIPNES Gallura | B187: 2019 | C187: ECOSFERA SRL | D187: 8 | E187: 200201 | F187: =890/1000 -> 0.89 | G187: M | H187: ECOSFERA SRL | I187: 70 | J187: R 13 - R3 | L187: CIPNES Gallura | M187: =890/1000 -> 0.89 | N187: CIPNES Gallura | O187: - | P187: - | Q187: - | R187: -
A188: CIPNES Gallura | B188: 2019 | C188: ECOSFERA SRL | D188: 9 | E188: 200201 | F188: =345/1000 -> 0.345 | G188: M | H188: ECOSFERA SRL | I188: 60 | J188: R 13 - R3 | L188: CIPNES Gallura | M188: =345/1000 -> 0.345 | N188: CIPNES Gallura | O188: - | P188: - | Q188: - | R188: -
A189: CIPNES Gallura | B189: 2019 | C189: ECOSFERA SRL | D189: 10 | E189: 200201 | F189: =210/1000 -> 0.21 | G189: M | H189: ECOSFERA SRL | I189: 70 | J189: R 13 - R3 | L189: CIPNES Gallura | M189: =210/1000 -> 0.21 | N189: CIPNES Gallura | O189: - | P189: - | Q189: - | R189: -
A190: CIPNES Gallura | B190: 2019 | C190: ECOSFERA SRL | D190: 11 | E190: 200201 | F190: =4475/1000 -> 4.475 | G190: M | H190: ECOSFERA SRL | I190: 70 | J190: R 13 - R3 | L190: CIPNES Gallura | M190: =4475/1000 -> 4.475 | N190: CIPNES Gallura | O190: - | P190: - | Q190: - | R190: -
A191: CIPNES Gallura | B191: 2019 | C191: ECOSFERA SRL | D191: 12 | E191: 200201 | F191: =1160/1000 -> 1.16 | G191: M | H191: ECOSFERA SRL | I191: 70 | J191: R 13 - R3 | L191: CIPNES Gallura | M191: =1160/1000 -> 1.16 | N191: CIPNES Gallura | O191: - | P191: - | Q191: - | R191: -
A192: CIPNES Gallura | B192: 2019 | C192: ECOTHERM SRL | D192: 3 | E192: 170201 | F192: =1025/1000 -> 1.025 | G192: M | H192: ECO OLBIA SRL | I192: 60 | J192: R 13 - R3 | L192: CIPNES Gallura | M192: =1025/1000 -> 1.025 | N192: CIPNES Gallura | O192: - | P192: - | Q192: - | R192: -
A193: CIPNES Gallura | B193: 2019 | C193: EDIL CARBONI | D193: 5 | E193: 200201 | F193: =1025/1000 -> 1.025 | G193: M | H193: C.I.P.N.E.S. GALLURA | I193: * | J193: R 13 - R3 | L193: CIPNES Gallura | M193: =1025/1000 -> 1.025 | N193: CIPNES Gallura | O193: - | P193: - | Q193: - | R193: -
A194: CIPNES Gallura | B194: 2019 | C194: EDIL.ANSA SRL | D194: 11 | E194: 200201 | F194: 10.42 | G194: M | H194: C.I.P.N.E.S. GALLURA | I194: * | J194: R 13 - R3 | L194: CIPNES Gallura | M194: 10.42 | N194: CIPNES Gallura | O194: - | P194: - | Q194: - | R194: -
A195: CIPNES Gallura | B195: 2019 | C195: EDIMP SRL | D195: 9 | E195: 170201 | F195: =1880/1000 -> 1.88 | G195: M | H195: EDIMP SRL | I195: 70 | J195: R 13 - R3 | L195: CIPNES Gallura | M195: =1880/1000 -> 1.88 | N195: CIPNES Gallura | O195: - | P195: - | Q195: - | R195: -
A196: CIPNES Gallura | B196: 2019 | C196: EMA GARDEN DI EMANUELE CAREDDU | D196: 4 | E196: 200201 | F196: =3525/1000 -> 3.525 | G196: M | H196: C.I.P.N.E.S. GALLURA | I196: * | J196: R 13 - R3 | L196: CIPNES Gallura | M196: =3525/1000 -> 3.525 | N196: CIPNES Gallura | O196: - | P196: - | Q196: - | R196: -
A197: CIPNES Gallura | B197: 2019 | C197: EMA GARDEN DI EMANUELE CAREDDU | D197: 8 | E197: 200201 | F197: =2700/1000 -> 2.7 | G197: M | H197: C.I.P.N.E.S. GALLURA | I197: * | J197: R 13 - R3 | L197: CIPNES Gallura | M197: =2700/1000 -> 2.7 | N197: CIPNES Gallura | O197: - | P197: - | Q197: - | R197: -
A198: CIPNES Gallura | B198: 2019 | C198: EMME L IMMOBILIARE | D198: 3 | E198: 200201 | F198: =2760/1000 -> 2.76 | G198: M | H198: C.I.P.N.E.S. GALLURA | I198: * | J198: R 13 - R3 | L198: CIPNES Gallura | M198: =2760/1000 -> 2.76 | N198: CIPNES Gallura | O198: - | P198: - | Q198: - | R198: -
A199: CIPNES Gallura | B199: 2019 | C199: EMMETIQUATTRO S.R.L | D199: 6 | E199: 150103 | F199: =17500/1000 -> 17.5 | G199: M | H199: C.I.P.N.E.S. GALLURA | I199: 70 | J199: R 13 - R3 | L199: CIPNES Gallura | M199: =17500/1000 -> 17.5 | N199: CIPNES Gallura | O199: - | P199: - | Q199: - | R199: -
A200: CIPNES Gallura | B200: 2019 | C200: DS GIARDINI DI DETTORI SALVATORE | D200: 7 | E200: 200201 | F200: 5.29 | G200: M | H200: C.I.P.N.E.S. GALLURA | I200: 70 | J200: R 13 - R3 | L200: CIPNES Gallura | M200: 5.29 | N200: CIPNES Gallura | O200: - | P200: - | Q200: - | R200: -
A201: CIPNES Gallura | B201: 2019 | C201: EMMETIQUATTRO S.R.L | D201: 7 | E201: 150103 | F201: =32260/1000 -> 32.26 | G201: M | H201: C.I.P.N.E.S. GALLURA | I201: 70 | J201: R 13 - R3 | L201: CIPNES Gallura | M201: =32260/1000 -> 32.26 | N201: CIPNES Gallura | O201: - | P201: - | Q201: - | R201: -
A202: CIPNES Gallura | B202: 2019 | C202: E.F.F.E.C.I.P.I. | D202: 10 | E202: 200201 | F202: 3.6 | G202: M | H202: C.I.P.N.E.S. GALLURA | I202: 70 | J202: R 13 - R3 | L202: CIPNES Gallura | M202: 3.6 | N202: CIPNES Gallura | O202: - | P202: - | Q202: - | R202: -
... 306 more rows

Sheet C - Flusso Compostaggio
A1: AGENZIA REGIONALE PER LA PROTEZIONE DELL’AMBIENTE DELLA SARDEGNA - ARPAS E OSSERVATORI PROVINCIALI RIFIUTI
A2: Impianti di Compostaggio
A4: PROSPETTO C
C7: BILANCIO DI MATERIA DELL’IMPIANTO di compostaggio "ex Sarda Compost" - ANNO 2019
D13: quantità (t) | E13: quantità (t) | F13: quantità (t)
B14: a) Rifiuti totali in ingresso (t/a) | D14: totale | E14: di cui da raccolta comunale | F14: di cui da privati | G14: note
B15: a1 | C15: cer 200108 | D15: =E15+F15 -> 0
B16: a2 | C16: cer 200201 | D16: =E16+F16 -> 6278.1 | E16: 4209.4 | F16: 2068.7
B17: a3 | C17: cer 150103 | D17: 720.95 | E17: 289.99 | F17: 430.96
B18: a4 | C18: cer 170201 | D18: 212.76 | E18: 23.84 | F18: 188.92
B19: a5 | C19: cer 200138 | D19: 318.77 | E19: 298.42 | F19: 20.35
B20: a6 | C20: cer 030105 | D20: 15.06 | E20: 0 | F20: 15.06
B21: a7 | C21: altri cer (specificare) | D21: 0
B22: a8 | C22: altri cer (specificare) | D22: 0
B24: b | C24: Perdite di processo
B26: SCARTI | C26: Scarti da processo* | D26: quantità (t) | E26: impianto di destinazione degli scarti | F26: M-C-S** | G26: note
B27: c1 | C27: 191212 | D27: 240 | E27: complesso ippc spiritu santu | F27: M
B28: c2 | C28: specificare cer
B29: c3 | C29: specificare cer
B30: c4 | C30: specificare cer
B31: c5 | C31: specificare cer
B32: c | C32: totale scarti
B34: percolato | C34: PERCOLATO prodotto | D34: quantità (t) | E34: impianto di destinazione del percolato | F34: M-C-S** | G34: note
B35: p1 | C35: 190703
B36: p2 | C36: 190703
B37: p3 | C37: 190703
B39: p | C39: totale
C41: Strutturante ricircolato | D41: quantità (t) | F41: M-C-S** | G41: note
B42: d | D42: 1600 | F42: S
B44: COMPOST | D44: quantità (t) | E44: destinazione compost | F44: M-C-S** | G44: note
B45: e | C45: Quantità di compost prodotto | D45: 1200 | E45: stoccaggio in impianto in attesa della cessione sul mercato florovivaistico | F45: S
B46: e1 | C46: di cui compost fuori specifica
B49: f | C49: Quantità compost stoccato in impianto | D49: 800 | F49: S
